Workbook

Sheet horses
A1: HORSE | B1: SPEED (m/s) | C1: STAMINA (seconds at normal pace) | D1: STRATEGY (S = starter, D = finisher, M = average) | E1: estimated finish time | F1: TRUE SPEED (for non-randomized races only, makes it so that the horse performs better than it's predicted odds) | G1: for distance: uses 1 stamina per turn but max speed is 1/3. at .2 race completion, uses 3 stamina per turn at max speed until run out of stamina then goes to 1/4 speed
A2: D.J. | B2: 22 | C2: 72 | D2: M | E2: =MIN(B2*C2/6,400)/(B2/2)+(control!$B$4-MIN(B2*C2/6,400))/(B2/8) -> 73.45454545 | F2: 23 | G2: for sprinter: from start uses 3 stamina per turn at max speed and goes to 1/4 speed when runs out of stamina
A3: Abaccus | B3: 20 | C3: 83 | D3: M | E3: =MIN(B3*C3/6,400)/(B3/2)+(control!$B$4-MIN(B3*C3/6,400))/(B3/8) -> 77 | F3: 21 | G3: for moderate: uses 1 stamina per turn but max speed is 1/3. at 0.06 race completion, uses 2 stamina at 2/3 speed until 0.33 then 3 stamina at max speed
A4: Abbervail Dream | B4: 26 | C4: 91 | D4: M | E4: =MIN(B4*C4/6,400)/(B4/2)+(control!$B$4-MIN(B4*C4/6,400))/(B4/8) -> 32.07692308 | F4: 30 | G4: each turn: move distance equal to random between (1,speed) | L4: Yes
A5: Abby | B5: 25 | C5: 70 | D5: S | E5: =MIN(B5*C5/6,400)/(B5/2)+(control!$B$4-MIN(B5*C5/6,400))/(B5/8) -> 58 | F5: 25 | G5: distance of races: | L5: No
A6: Abdullah | B6: 21 | C6: 76 | D6: S | E6: =MIN(B6*C6/6,400)/(B6/2)+(control!$B$4-MIN(B6*C6/6,400))/(B6/8) -> 76.38095238 | F6: 25 | G6: quarter race: 400 m | I6: *we will only use this race type | L6: INCLUDE RANDOMIZATION?
A7: Abercrombie | B7: 15 | C7: 90 | D7: S | E7: =MIN(B7*C7/6,400)/(B7/2)+(control!$B$4-MIN(B7*C7/6,400))/(B7/8) -> 123.3333333 | F7: 19 | G7: pleasure ride endurance race: 16000 m | L7: Yes
A8: Able Master | B8: 18 | C8: 96 | D8: D | E8: =MIN(B8*C8/6,400)/(B8/2)+(control!$B$4-MIN(B8*C8/6,400))/(B8/8) -> 81.77777778 | F8: 18 | G8: non-competitive trail race: 40000 m
A9: Above and Beyond | B9: 27 | C9: 71 | D9: S | E9: =MIN(B9*C9/6,400)/(B9/2)+(control!$B$4-MIN(B9*C9/6,400))/(B9/8) -> 47.51851852 | F9: 31 | G9: competitive trail race: 64000 m
A10: Above The Clouds | B10: 26 | C10: 108 | D10: D | E10: =MIN(B10*C10/6,400)/(B10/2)+(control!$B$4-MIN(B10*C10/6,400))/(B10/8) -> 30.76923077 | F10: 30 | G10: endurace race: 100000 m
A11: Abracadabra | B11: 16 | C11: 77 | D11: S | E11: =MIN(B11*C11/6,400)/(B11/2)+(control!$B$4-MIN(B11*C11/6,400))/(B11/8) -> 123 | F11: 16
A12: Absent | B12: 17 | C12: 96 | D12: S | E12: =MIN(B12*C12/6,400)/(B12/2)+(control!$B$4-MIN(B12*C12/6,400))/(B12/8) -> 92.23529412 | F12: 20 | G12: =MIN(B:B) -> 10 | H12: =MIN(C:C) -> 40 | I12: =COUNTIF(D:D,"S") -> 2626 | J12: =MIN(E:E) -> 28.57142857
A13: Absolute Bullet Proof | B13: 27 | C13: 92 | D13: S | E13: =MIN(B13*C13/6,400)/(B13/2)+(control!$B$4-MIN(B13*C13/6,400))/(B13/8) -> 29.62962963 | F13: 29 | G13: =MAX(B:B) -> 28 | H13: =MAX(C:C) -> 130 | I13: =COUNTA(D:D)-1 -> 4763 | J13: =MAX(E:E) -> 280
A14: Abu | B14: 19 | C14: 109 | D14: M | E14: =MIN(B14*C14/6,400)/(B14/2)+(control!$B$4-MIN(B14*C14/6,400))/(B14/8) -> 59.42105263 | F14: 23 | G14: =AVERAGE(B:B) -> 20.79193785 | H14: =AVERAGE(C:C) -> 87.99832039 | I14: =I12/I13 -> 0.5513331934 | J14: =AVERAGE(E:E) -> 71.17502991
A15: Acapella | B15: 20 | C15: 69 | D15: S | E15: =MIN(B15*C15/6,400)/(B15/2)+(control!$B$4-MIN(B15*C15/6,400))/(B15/8) -> 91 | F15: 23 | I15: S
A16: Ace | B16: 15 | C16: 98 | D16: D | E16: =MIN(B16*C16/6,400)/(B16/2)+(control!$B$4-MIN(B16*C16/6,400))/(B16/8) -> 115.3333333 | F16: 16 | I16: =COUNTIF(D:D,"S") -> 2626 | J16: s
A17: Ace of Spades | B17: 18 | C17: 92 | D17: D | E17: =MIN(B17*C17/6,400)/(B17/2)+(control!$B$4-MIN(B17*C17/6,400))/(B17/8) -> 85.77777778 | F17: 21 | I17: =COUNTIF(D:D,"M") -> 1301 | J17: m
A18: Acer | B18: 19 | C18: 89 | D18: S | E18: =MIN(B18*C18/6,400)/(B18/2)+(control!$B$4-MIN(B18*C18/6,400))/(B18/8) -> 79.42105263 | F18: 23 | G18: NUMBER: | I18: =COUNTIF(D:D,"D") -> 836 | J18: d
A19: Aces Diamond Rio | B19: 22 | C19: 67 | D19: S | E19: =MIN(B19*C19/6,400)/(B19/2)+(control!$B$4-MIN(B19*C19/6,400))/(B19/8) -> 78.45454545 | F19: 26 | G19: =COUNTA(A:A)-1 -> 4763
A20: Acker Bilk | B20: 21 | C20: 79 | D20: M | E20: =MIN(B20*C20/6,400)/(B20/2)+(control!$B$4-MIN(B20*C20/6,400))/(B20/8) -> 73.38095238 | F20: 23
A21: Acorn | B21: 22 | C21: 80 | D21: S | E21: =MIN(B21*C21/6,400)/(B21/2)+(control!$B$4-MIN(B21*C21/6,400))/(B21/8) -> 65.45454545 | F21: 26
A22: Acromantula | B22: 26 | C22: 99 | D22: D | E22: =MIN(B22*C22/6,400)/(B22/2)+(control!$B$4-MIN(B22*C22/6,400))/(B22/8) -> 30.76923077 | F22: 29
A23: Ad Alta | B23: 16 | C23: 100 | D23: S | E23: =MIN(B23*C23/6,400)/(B23/2)+(control!$B$4-MIN(B23*C23/6,400))/(B23/8) -> 100 | F23: 17
A24: Adagio | B24: 27 | C24: 92 | D24: S | E24: =MIN(B24*C24/6,400)/(B24/2)+(control!$B$4-MIN(B24*C24/6,400))/(B24/8) -> 29.62962963 | F24: 30
A25: Adat | B25: 18 | C25: 116 | D25: D | E25: =MIN(B25*C25/6,400)/(B25/2)+(control!$B$4-MIN(B25*C25/6,400))/(B25/8) -> 61.77777778 | F25: 18
A26: Addie Over | B26: 21 | C26: 78 | D26: S | E26: =MIN(B26*C26/6,400)/(B26/2)+(control!$B$4-MIN(B26*C26/6,400))/(B26/8) -> 74.38095238 | F26: 22
A27: Admiral | B27: 25 | C27: 105 | D27: S | E27: =MIN(B27*C27/6,400)/(B27/2)+(control!$B$4-MIN(B27*C27/6,400))/(B27/8) -> 32 | F27: 29
A28: Adrian | B28: 27 | C28: 62 | D28: M | E28: =MIN(B28*C28/6,400)/(B28/2)+(control!$B$4-MIN(B28*C28/6,400))/(B28/8) -> 56.51851852 | F28: 30
A29: Aeris | B29: 22 | C29: 119 | D29: M | E29: =MIN(B29*C29/6,400)/(B29/2)+(control!$B$4-MIN(B29*C29/6,400))/(B29/8) -> 36.36363636 | F29: 26
A30: Aerosmith | B30: 19 | C30: 83 | D30: S | E30: =MIN(B30*C30/6,400)/(B30/2)+(control!$B$4-MIN(B30*C30/6,400))/(B30/8) -> 85.42105263 | F30: 22
A31: Aferditie | B31: 16 | C31: 113 | D31: S | E31: =MIN(B31*C31/6,400)/(B31/2)+(control!$B$4-MIN(B31*C31/6,400))/(B31/8) -> 87 | F31: 16
A32: Africa | B32: 26 | C32: 93 | D32: M | E32: =MIN(B32*C32/6,400)/(B32/2)+(control!$B$4-MIN(B32*C32/6,400))/(B32/8) -> 30.76923077 | F32: 26
A33: Afterglow | B33: 19 | C33: 95 | D33: D | E33: =MIN(B33*C33/6,400)/(B33/2)+(control!$B$4-MIN(B33*C33/6,400))/(B33/8) -> 73.42105263 | F33: 21
A34: Afternoon Delight | B34: 27 | C34: 92 | D34: M | E34: =MIN(B34*C34/6,400)/(B34/2)+(control!$B$4-MIN(B34*C34/6,400))/(B34/8) -> 29.62962963 | F34: 31
A35: Aftershock | B35: 19 | C35: 121 | D35: S | E35: =MIN(B35*C35/6,400)/(B35/2)+(control!$B$4-MIN(B35*C35/6,400))/(B35/8) -> 47.42105263 | F35: 21
A36: Agape | B36: 15 | C36: 87 | D36: M | E36: =MIN(B36*C36/6,400)/(B36/2)+(control!$B$4-MIN(B36*C36/6,400))/(B36/8) -> 126.3333333 | F36: 16
A37: Agent 007 | B37: 15 | C37: 71 | D37: M | E37: =MIN(B37*C37/6,400)/(B37/2)+(control!$B$4-MIN(B37*C37/6,400))/(B37/8) -> 142.3333333 | F37: 17
A38: Aggie's Diamond | B38: 21 | C38: 84 | D38: S | E38: =MIN(B38*C38/6,400)/(B38/2)+(control!$B$4-MIN(B38*C38/6,400))/(B38/8) -> 68.38095238 | F38: 22
A39: Ahlerich | B39: 27 | C39: 92 | D39: S | E39: =MIN(B39*C39/6,400)/(B39/2)+(control!$B$4-MIN(B39*C39/6,400))/(B39/8) -> 29.62962963 | F39: 27
A40: Ahwa | B40: 26 | C40: 69 | D40: M | E40: =MIN(B40*C40/6,400)/(B40/2)+(control!$B$4-MIN(B40*C40/6,400))/(B40/8) -> 54.07692308 | F40: 29
A41: Ai | B41: 22 | C41: 74 | D41: S | E41: =MIN(B41*C41/6,400)/(B41/2)+(control!$B$4-MIN(B41*C41/6,400))/(B41/8) -> 71.45454545 | F41: 25
A42: Aida | B42: 27 | C42: 91 | D42: D | E42: =MIN(B42*C42/6,400)/(B42/2)+(control!$B$4-MIN(B42*C42/6,400))/(B42/8) -> 29.62962963 | F42: 31
A43: Aidan | B43: 16 | C43: 106 | D43: D | E43: =MIN(B43*C43/6,400)/(B43/2)+(control!$B$4-MIN(B43*C43/6,400))/(B43/8) -> 94 | F43: 20
A44: Aiko | B44: 27 | C44: 89 | D44: M | E44: =MIN(B44*C44/6,400)/(B44/2)+(control!$B$4-MIN(B44*C44/6,400))/(B44/8) -> 29.62962963 | F44: 28
A45: Ain't Misbehavin | B45: 19 | C45: 90 | D45: M | E45: =MIN(B45*C45/6,400)/(B45/2)+(control!$B$4-MIN(B45*C45/6,400))/(B45/8) -> 78.42105263 | F45: 19
A46: Air | B46: 21 | C46: 83 | D46: S | E46: =MIN(B46*C46/6,400)/(B46/2)+(control!$B$4-MIN(B46*C46/6,400))/(B46/8) -> 69.38095238 | F46: 24
A47: Air Born | B47: 19 | C47: 99 | D47: D | E47: =MIN(B47*C47/6,400)/(B47/2)+(control!$B$4-MIN(B47*C47/6,400))/(B47/8) -> 69.42105263 | F47: 20
A48: Air Express | B48: 20 | C48: 64 | D48: S | E48: =MIN(B48*C48/6,400)/(B48/2)+(control!$B$4-MIN(B48*C48/6,400))/(B48/8) -> 96 | F48: 24
A49: Airborne Magic | B49: 16 | C49: 75 | D49: S | E49: =MIN(B49*C49/6,400)/(B49/2)+(control!$B$4-MIN(B49*C49/6,400))/(B49/8) -> 125 | F49: 16
A50: Aitch | B50: 17 | C50: 84 | D50: S | E50: =MIN(B50*C50/6,400)/(B50/2)+(control!$B$4-MIN(B50*C50/6,400))/(B50/8) -> 104.2352941 | F50: 19
A51: Akasha | B51: 23 | C51: 81 | D51: S | E51: =MIN(B51*C51/6,400)/(B51/2)+(control!$B$4-MIN(B51*C51/6,400))/(B51/8) -> 58.13043478 | F51: 24
A52: Akhademy | B52: 24 | C52: 99 | D52: D | E52: =MIN(B52*C52/6,400)/(B52/2)+(control!$B$4-MIN(B52*C52/6,400))/(B52/8) -> 34.33333333 | F52: 28
A53: Al | B53: 21 | C53: 61 | D53: S | E53: =MIN(B53*C53/6,400)/(B53/2)+(control!$B$4-MIN(B53*C53/6,400))/(B53/8) -> 91.38095238 | F53: 24
A54: Al Akbar | B54: 20 | C54: 102 | D54: D | E54: =MIN(B54*C54/6,400)/(B54/2)+(control!$B$4-MIN(B54*C54/6,400))/(B54/8) -> 58 | F54: 23
A55: Alacazam | B55: 22 | C55: 75 | D55: M | E55: =MIN(B55*C55/6,400)/(B55/2)+(control!$B$4-MIN(B55*C55/6,400))/(B55/8) -> 70.45454545 | F55: 22
A56: Aladdin | B56: 19 | C56: 85 | D56: S | E56: =MIN(B56*C56/6,400)/(B56/2)+(control!$B$4-MIN(B56*C56/6,400))/(B56/8) -> 83.42105263 | F56: 21
A57: Alanah | B57: 18 | C57: 100 | D57: D | E57: =MIN(B57*C57/6,400)/(B57/2)+(control!$B$4-MIN(B57*C57/6,400))/(B57/8) -> 77.77777778 | F57: 18
A58: Alaska | B58: 15 | C58: 75 | D58: S | E58: =MIN(B58*C58/6,400)/(B58/2)+(control!$B$4-MIN(B58*C58/6,400))/(B58/8) -> 138.3333333 | F58: 17
A59: Alberton Star | B59: 22 | C59: 98 | D59: M | E59: =MIN(B59*C59/6,400)/(B59/2)+(control!$B$4-MIN(B59*C59/6,400))/(B59/8) -> 47.45454545 | F59: 23
A60: Alcatraz | B60: 27 | C60: 72 | D60: M | E60: =MIN(B60*C60/6,400)/(B60/2)+(control!$B$4-MIN(B60*C60/6,400))/(B60/8) -> 46.51851852 | F60: 28
A61: Alex | B61: 20 | C61: 84 | D61: S | E61: =MIN(B61*C61/6,400)/(B61/2)+(control!$B$4-MIN(B61*C61/6,400))/(B61/8) -> 76 | F61: 22
A62: Alexa | B62: 19 | C62: 119 | D62: D | E62: =MIN(B62*C62/6,400)/(B62/2)+(control!$B$4-MIN(B62*C62/6,400))/(B62/8) -> 49.42105263 | F62: 20
A63: Alexander the Great | B63: 25 | C63: 100 | D63: M | E63: =MIN(B63*C63/6,400)/(B63/2)+(control!$B$4-MIN(B63*C63/6,400))/(B63/8) -> 32 | F63: 29
A64: Alfie | B64: 21 | C64: 116 | D64: M | E64: =MIN(B64*C64/6,400)/(B64/2)+(control!$B$4-MIN(B64*C64/6,400))/(B64/8) -> 38.0952381 | F64: 24
A65: Ali | B65: 17 | C65: 63 | D65: S | E65: =MIN(B65*C65/6,400)/(B65/2)+(control!$B$4-MIN(B65*C65/6,400))/(B65/8) -> 125.2352941 | F65: 20
A66: Ali Baba | B66: 26 | C66: 96 | D66: M | E66: =MIN(B66*C66/6,400)/(B66/2)+(control!$B$4-MIN(B66*C66/6,400))/(B66/8) -> 30.76923077 | F66: 28
A67: Alia Kazam | B67: 27 | C67: 89 | D67: S | E67: =MIN(B67*C67/6,400)/(B67/2)+(control!$B$4-MIN(B67*C67/6,400))/(B67/8) -> 29.62962963 | F67: 28
A68: Alizay | B68: 21 | C68: 87 | D68: S | E68: =MIN(B68*C68/6,400)/(B68/2)+(control!$B$4-MIN(B68*C68/6,400))/(B68/8) -> 65.38095238 | F68: 22
A69: All My Heart | B69: 21 | C69: 99 | D69: S | E69: =MIN(B69*C69/6,400)/(B69/2)+(control!$B$4-MIN(B69*C69/6,400))/(B69/8) -> 53.38095238 | F69: 22
A70: All Natural | B70: 17 | C70: 87 | D70: S | E70: =MIN(B70*C70/6,400)/(B70/2)+(control!$B$4-MIN(B70*C70/6,400))/(B70/8) -> 101.2352941 | F70: 21
A71: All that Jazz | B71: 16 | C71: 80 | D71: S | E71: =MIN(B71*C71/6,400)/(B71/2)+(control!$B$4-MIN(B71*C71/6,400))/(B71/8) -> 120 | F71: 19
A72: Alladin's Treasure | B72: 22 | C72: 70 | D72: S | E72: =MIN(B72*C72/6,400)/(B72/2)+(control!$B$4-MIN(B72*C72/6,400))/(B72/8) -> 75.45454545 | F72: 24
A73: All-American Rocket | B73: 19 | C73: 123 | D73: M | E73: =MIN(B73*C73/6,400)/(B73/2)+(control!$B$4-MIN(B73*C73/6,400))/(B73/8) -> 45.42105263 | F73: 20
A74: Allegra | B74: 21 | C74: 82 | D74: M | E74: =MIN(B74*C74/6,400)/(B74/2)+(control!$B$4-MIN(B74*C74/6,400))/(B74/8) -> 70.38095238 | F74: 21
A75: Allegria | B75: 18 | C75: 95 | D75: S | E75: =MIN(B75*C75/6,400)/(B75/2)+(control!$B$4-MIN(B75*C75/6,400))/(B75/8) -> 82.77777778 | F75: 22
A76: Allegro | B76: 25 | C76: 73 | D76: S | E76: =MIN(B76*C76/6,400)/(B76/2)+(control!$B$4-MIN(B76*C76/6,400))/(B76/8) -> 55 | F76: 27
A77: Allison Fast | B77: 21 | C77: 85 | D77: S | E77: =MIN(B77*C77/6,400)/(B77/2)+(control!$B$4-MIN(B77*C77/6,400))/(B77/8) -> 67.38095238 | F77: 21
A78: Allouette | B78: 19 | C78: 102 | D78: S | E78: =MIN(B78*C78/6,400)/(B78/2)+(control!$B$4-MIN(B78*C78/6,400))/(B78/8) -> 66.42105263 | F78: 23
A79: Alloverdaplace | B79: 22 | C79: 101 | D79: S | E79: =MIN(B79*C79/6,400)/(B79/2)+(control!$B$4-MIN(B79*C79/6,400))/(B79/8) -> 44.45454545 | F79: 23
A80: Allstar | B80: 20 | C80: 88 | D80: S | E80: =MIN(B80*C80/6,400)/(B80/2)+(control!$B$4-MIN(B80*C80/6,400))/(B80/8) -> 72 | F80: 20
A81: Ally | B81: 18 | C81: 98 | D81: D | E81: =MIN(B81*C81/6,400)/(B81/2)+(control!$B$4-MIN(B81*C81/6,400))/(B81/8) -> 79.77777778 | F81: 20
A82: Almonds | B82: 16 | C82: 76 | D82: S | E82: =MIN(B82*C82/6,400)/(B82/2)+(control!$B$4-MIN(B82*C82/6,400))/(B82/8) -> 124 | F82: 18
A83: Almost Illegal | B83: 22 | C83: 93 | D83: D | E83: =MIN(B83*C83/6,400)/(B83/2)+(control!$B$4-MIN(B83*C83/6,400))/(B83/8) -> 52.45454545 | F83: 25
A84: Alomar | B84: 19 | C84: 94 | D84: S | E84: =MIN(B84*C84/6,400)/(B84/2)+(control!$B$4-MIN(B84*C84/6,400))/(B84/8) -> 74.42105263 | F84: 19
A85: Alotastuff | B85: 26 | C85: 92 | D85: D | E85: =MIN(B85*C85/6,400)/(B85/2)+(control!$B$4-MIN(B85*C85/6,400))/(B85/8) -> 31.07692308 | F85: 28
A86: Alouette | B86: 20 | C86: 72 | D86: M | E86: =MIN(B86*C86/6,400)/(B86/2)+(control!$B$4-MIN(B86*C86/6,400))/(B86/8) -> 88 | F86: 23
A87: Altair | B87: 15 | C87: 74 | D87: S | E87: =MIN(B87*C87/6,400)/(B87/2)+(control!$B$4-MIN(B87*C87/6,400))/(B87/8) -> 139.3333333 | F87: 17
A88: Altivo | B88: 19 | C88: 97 | D88: S | E88: =MIN(B88*C88/6,400)/(B88/2)+(control!$B$4-MIN(B88*C88/6,400))/(B88/8) -> 71.42105263 | F88: 22
A89: Alto Vito | B89: 19 | C89: 59 | D89: S | E89: =MIN(B89*C89/6,400)/(B89/2)+(control!$B$4-MIN(B89*C89/6,400))/(B89/8) -> 109.4210526 | F89: 22
A90: Always | B90: 24 | C90: 84 | D90: M | E90: =MIN(B90*C90/6,400)/(B90/2)+(control!$B$4-MIN(B90*C90/6,400))/(B90/8) -> 49.33333333 | F90: 26
A91: Always A Dot | B91: 22 | C91: 100 | D91: S | E91: =MIN(B91*C91/6,400)/(B91/2)+(control!$B$4-MIN(B91*C91/6,400))/(B91/8) -> 45.45454545 | F91: 23
A92: Amadeus | B92: 20 | C92: 87 | D92: M | E92: =MIN(B92*C92/6,400)/(B92/2)+(control!$B$4-MIN(B92*C92/6,400))/(B92/8) -> 73 | F92: 20
A93: Amanda | B93: 15 | C93: 90 | D93: S | E93: =MIN(B93*C93/6,400)/(B93/2)+(control!$B$4-MIN(B93*C93/6,400))/(B93/8) -> 123.3333333 | F93: 18
A94: Amaretto | B94: 17 | C94: 90 | D94: S | E94: =MIN(B94*C94/6,400)/(B94/2)+(control!$B$4-MIN(B94*C94/6,400))/(B94/8) -> 98.23529412 | F94: 21
A95: Amarillo Rose | B95: 16 | C95: 113 | D95: S | E95: =MIN(B95*C95/6,400)/(B95/2)+(control!$B$4-MIN(B95*C95/6,400))/(B95/8) -> 87 | F95: 16
A96: Amazing | B96: 20 | C96: 68 | D96: S | E96: =MIN(B96*C96/6,400)/(B96/2)+(control!$B$4-MIN(B96*C96/6,400))/(B96/8) -> 92 | F96: 22
A97: Amazing Grace | B97: 19 | C97: 101 | D97: D | E97: =MIN(B97*C97/6,400)/(B97/2)+(control!$B$4-MIN(B97*C97/6,400))/(B97/8) -> 67.42105263 | F97: 20
A98: Amazon | B98: 27 | C98: 105 | D98: D | E98: =MIN(B98*C98/6,400)/(B98/2)+(control!$B$4-MIN(B98*C98/6,400))/(B98/8) -> 29.62962963 | F98: 28
A99: Ambara | B99: 19 | C99: 123 | D99: S | E99: =MIN(B99*C99/6,400)/(B99/2)+(control!$B$4-MIN(B99*C99/6,400))/(B99/8) -> 45.42105263 | F99: 20
A100: Ambassador | B100: 21 | C100: 99 | D100: D | E100: =MIN(B100*C100/6,400)/(B100/2)+(control!$B$4-MIN(B100*C100/6,400))/(B100/8) -> 53.38095238 | F100: 25
A101: Amber | B101: 17 | C101: 110 | D101: S | E101: =MIN(B101*C101/6,400)/(B101/2)+(control!$B$4-MIN(B101*C101/6,400))/(B101/8) -> 78.23529412 | F101: 20
A102: Amber Dancer | B102: 20 | C102: 74 | D102: M | E102: =MIN(B102*C102/6,400)/(B102/2)+(control!$B$4-MIN(B102*C102/6,400))/(B102/8) -> 86 | F102: 21
A103: Ambition | B103: 17 | C103: 85 | D103: S | E103: =MIN(B103*C103/6,400)/(B103/2)+(control!$B$4-MIN(B103*C103/6,400))/(B103/8) -> 103.2352941 | F103: 20
A104: Ambitious | B104: 24 | C104: 123 | D104: D | E104: =MIN(B104*C104/6,400)/(B104/2)+(control!$B$4-MIN(B104*C104/6,400))/(B104/8) -> 33.33333333 | F104: 24
A105: Ameera | B105: 20 | C105: 79 | D105: M | E105: =MIN(B105*C105/6,400)/(B105/2)+(control!$B$4-MIN(B105*C105/6,400))/(B105/8) -> 81 | F105: 24
A106: American Beauty | B106: 17 | C106: 123 | D106: S | E106: =MIN(B106*C106/6,400)/(B106/2)+(control!$B$4-MIN(B106*C106/6,400))/(B106/8) -> 65.23529412 | F106: 18
A107: American Pie | B107: 22 | C107: 86 | D107: M | E107: =MIN(B107*C107/6,400)/(B107/2)+(control!$B$4-MIN(B107*C107/6,400))/(B107/8) -> 59.45454545 | F107: 23
A108: Amethyst | B108: 17 | C108: 93 | D108: D | E108: =MIN(B108*C108/6,400)/(B108/2)+(control!$B$4-MIN(B108*C108/6,400))/(B108/8) -> 95.23529412 | F108: 18
A109: Amfortas | B109: 23 | C109: 108 | D109: S | E109: =MIN(B109*C109/6,400)/(B109/2)+(control!$B$4-MIN(B109*C109/6,400))/(B109/8) -> 34.7826087 | F109: 23
A110: Amigo | B110: 20 | C110: 60 | D110: S | E110: =MIN(B110*C110/6,400)/(B110/2)+(control!$B$4-MIN(B110*C110/6,400))/(B110/8) -> 100 | F110: 23
A111: Amulet | B111: 16 | C111: 63 | D111: S | E111: =MIN(B111*C111/6,400)/(B111/2)+(control!$B$4-MIN(B111*C111/6,400))/(B111/8) -> 137 | F111: 17
A112: Amy | B112: 23 | C112: 101 | D112: S | E112: =MIN(B112*C112/6,400)/(B112/2)+(control!$B$4-MIN(B112*C112/6,400))/(B112/8) -> 38.13043478 | F112: 23
A113: An Affair to Remember | B113: 20 | C113: 101 | D113: S | E113: =MIN(B113*C113/6,400)/(B113/2)+(control!$B$4-MIN(B113*C113/6,400))/(B113/8) -> 59 | F113: 23
A114: Anakin | B114: 15 | C114: 88 | D114: S | E114: =MIN(B114*C114/6,400)/(B114/2)+(control!$B$4-MIN(B114*C114/6,400))/(B114/8) -> 125.3333333 | F114: 15
A115: Ananda | B115: 15 | C115: 76 | D115: S | E115: =MIN(B115*C115/6,400)/(B115/2)+(control!$B$4-MIN(B115*C115/6,400))/(B115/8) -> 137.3333333 | F115: 19
A116: Anchor, | B116: 17 | C116: 115 | D116: S | E116: =MIN(B116*C116/6,400)/(B116/2)+(control!$B$4-MIN(B116*C116/6,400))/(B116/8) -> 73.23529412 | F116: 21
A117: Ancient Orange | B117: 17 | C117: 87 | D117: M | E117: =MIN(B117*C117/6,400)/(B117/2)+(control!$B$4-MIN(B117*C117/6,400))/(B117/8) -> 101.2352941 | F117: 18
A118: Andale | B118: 21 | C118: 77 | D118: S | E118: =MIN(B118*C118/6,400)/(B118/2)+(control!$B$4-MIN(B118*C118/6,400))/(B118/8) -> 75.38095238 | F118: 24
A119: Andrejana | B119: 25 | C119: 69 | D119: M | E119: =MIN(B119*C119/6,400)/(B119/2)+(control!$B$4-MIN(B119*C119/6,400))/(B119/8) -> 59 | F119: 29
A120: Angel | B120: 22 | C120: 75 | D120: S | E120: =MIN(B120*C120/6,400)/(B120/2)+(control!$B$4-MIN(B120*C120/6,400))/(B120/8) -> 70.45454545 | F120: 26
A121: Angel Eyes | B121: 24 | C121: 92 | D121: D | E121: =MIN(B121*C121/6,400)/(B121/2)+(control!$B$4-MIN(B121*C121/6,400))/(B121/8) -> 41.33333333 | F121: 26
A122: Angel of Mine | B122: 15 | C122: 82 | D122: S | E122: =MIN(B122*C122/6,400)/(B122/2)+(control!$B$4-MIN(B122*C122/6,400))/(B122/8) -> 131.3333333 | F122: 18
A123: Angelfire | B123: 19 | C123: 96 | D123: D | E123: =MIN(B123*C123/6,400)/(B123/2)+(control!$B$4-MIN(B123*C123/6,400))/(B123/8) -> 72.42105263 | F123: 23
A124: Angelina | B124: 16 | C124: 75 | D124: S | E124: =MIN(B124*C124/6,400)/(B124/2)+(control!$B$4-MIN(B124*C124/6,400))/(B124/8) -> 125 | F124: 16
A125: Angelo | B125: 24 | C125: 84 | D125: S | E125: =MIN(B125*C125/6,400)/(B125/2)+(control!$B$4-MIN(B125*C125/6,400))/(B125/8) -> 49.33333333 | F125: 27
A126: Angel's Glory | B126: 24 | C126: 65 | D126: S | E126: =MIN(B126*C126/6,400)/(B126/2)+(control!$B$4-MIN(B126*C126/6,400))/(B126/8) -> 68.33333333 | F126: 28
A127: Angle | B127: 19 | C127: 63 | D127: S | E127: =MIN(B127*C127/6,400)/(B127/2)+(control!$B$4-MIN(B127*C127/6,400))/(B127/8) -> 105.4210526 | F127: 22
A128: Anita | B128: 17 | C128: 105 | D128: S | E128: =MIN(B128*C128/6,400)/(B128/2)+(control!$B$4-MIN(B128*C128/6,400))/(B128/8) -> 83.23529412 | F128: 20
A129: Anna Bell | B129: 27 | C129: 66 | D129: S | E129: =MIN(B129*C129/6,400)/(B129/2)+(control!$B$4-MIN(B129*C129/6,400))/(B129/8) -> 52.51851852 | F129: 28
A130: Annabel | B130: 16 | C130: 74 | D130: M | E130: =MIN(B130*C130/6,400)/(B130/2)+(control!$B$4-MIN(B130*C130/6,400))/(B130/8) -> 126 | F130: 18
A131: Annabelle | B131: 19 | C131: 82 | D131: S | E131: =MIN(B131*C131/6,400)/(B131/2)+(control!$B$4-MIN(B131*C131/6,400))/(B131/8) -> 86.42105263 | F131: 20
A132: Annie | B132: 23 | C132: 114 | D132: S | E132: =MIN(B132*C132/6,400)/(B132/2)+(control!$B$4-MIN(B132*C132/6,400))/(B132/8) -> 34.7826087 | F132: 25
A133: Annie Oakley | B133: 20 | C133: 77 | D133: S | E133: =MIN(B133*C133/6,400)/(B133/2)+(control!$B$4-MIN(B133*C133/6,400))/(B133/8) -> 83 | F133: 24
A134: Ann's Misty Gal | B134: 25 | C134: 111 | D134: S | E134: =MIN(B134*C134/6,400)/(B134/2)+(control!$B$4-MIN(B134*C134/6,400))/(B134/8) -> 32 | F134: 25
A135: Another Chance | B135: 24 | C135: 85 | D135: S | E135: =MIN(B135*C135/6,400)/(B135/2)+(control!$B$4-MIN(B135*C135/6,400))/(B135/8) -> 48.33333333 | F135: 27
A136: Answered Prayers | B136: 19 | C136: 79 | D136: S | E136: =MIN(B136*C136/6,400)/(B136/2)+(control!$B$4-MIN(B136*C136/6,400))/(B136/8) -> 89.42105263 | F136: 21
A137: Anthem | B137: 25 | C137: 85 | D137: S | E137: =MIN(B137*C137/6,400)/(B137/2)+(control!$B$4-MIN(B137*C137/6,400))/(B137/8) -> 43 | F137: 26
A138: Anthony | B138: 22 | C138: 66 | D138: S | E138: =MIN(B138*C138/6,400)/(B138/2)+(control!$B$4-MIN(B138*C138/6,400))/(B138/8) -> 79.45454545 | F138: 24
A139: Anton | B139: 20 | C139: 69 | D139: M | E139: =MIN(B139*C139/6,400)/(B139/2)+(control!$B$4-MIN(B139*C139/6,400))/(B139/8) -> 91 | F139: 21
A140: Any Victory Will Do | B140: 22 | C140: 72 | D140: M | E140: =MIN(B140*C140/6,400)/(B140/2)+(control!$B$4-MIN(B140*C140/6,400))/(B140/8) -> 73.45454545 | F140: 25
A141: Anziyan | B141: 25 | C141: 86 | D141: M | E141: =MIN(B141*C141/6,400)/(B141/2)+(control!$B$4-MIN(B141*C141/6,400))/(B141/8) -> 42 | F141: 25
A142: Apache | B142: 20 | C142: 90 | D142: S | E142: =MIN(B142*C142/6,400)/(B142/2)+(control!$B$4-MIN(B142*C142/6,400))/(B142/8) -> 70 | F142: 22
A143: Apache Clouds | B143: 21 | C143: 71 | D143: S | E143: =MIN(B143*C143/6,400)/(B143/2)+(control!$B$4-MIN(B143*C143/6,400))/(B143/8) -> 81.38095238 | F143: 24
A144: Apache Outlaw | B144: 22 | C144: 102 | D144: M | E144: =MIN(B144*C144/6,400)/(B144/2)+(control!$B$4-MIN(B144*C144/6,400))/(B144/8) -> 43.45454545 | F144: 25
A145: Apache Sunrise | B145: 23 | C145: 123 | D145: S | E145: =MIN(B145*C145/6,400)/(B145/2)+(control!$B$4-MIN(B145*C145/6,400))/(B145/8) -> 34.7826087 | F145: 23
A146: Aphrodite | B146: 19 | C146: 100 | D146: S | E146: =MIN(B146*C146/6,400)/(B146/2)+(control!$B$4-MIN(B146*C146/6,400))/(B146/8) -> 68.42105263 | F146: 20
A147: Apollo | B147: 20 | C147: 95 | D147: D | E147: =MIN(B147*C147/6,400)/(B147/2)+(control!$B$4-MIN(B147*C147/6,400))/(B147/8) -> 65 | F147: 21
A148: Apollo's Chariot | B148: 22 | C148: 98 | D148: M | E148: =MIN(B148*C148/6,400)/(B148/2)+(control!$B$4-MIN(B148*C148/6,400))/(B148/8) -> 47.45454545 | F148: 22
A149: Appalooa | B149: 19 | C149: 93 | D149: S | E149: =MIN(B149*C149/6,400)/(B149/2)+(control!$B$4-MIN(B149*C149/6,400))/(B149/8) -> 75.42105263 | F149: 20
A150: Appichi | B150: 21 | C150: 71 | D150: M | E150: =MIN(B150*C150/6,400)/(B150/2)+(control!$B$4-MIN(B150*C150/6,400))/(B150/8) -> 81.38095238 | F150: 21
A151: Applause | B151: 22 | C151: 76 | D151: S | E151: =MIN(B151*C151/6,400)/(B151/2)+(control!$B$4-MIN(B151*C151/6,400))/(B151/8) -> 69.45454545 | F151: 26
A152: Apple | B152: 22 | C152: 80 | D152: S | E152: =MIN(B152*C152/6,400)/(B152/2)+(control!$B$4-MIN(B152*C152/6,400))/(B152/8) -> 65.45454545 | F152: 23
A153: Apple Butter | B153: 22 | C153: 74 | D153: S | E153: =MIN(B153*C153/6,400)/(B153/2)+(control!$B$4-MIN(B153*C153/6,400))/(B153/8) -> 71.45454545 | F153: 23
A154: Apple Candy | B154: 16 | C154: 100 | D154: D | E154: =MIN(B154*C154/6,400)/(B154/2)+(control!$B$4-MIN(B154*C154/6,400))/(B154/8) -> 100 | F154: 19
A155: Apple Dew | B155: 20 | C155: 106 | D155: D | E155: =MIN(B155*C155/6,400)/(B155/2)+(control!$B$4-MIN(B155*C155/6,400))/(B155/8) -> 54 | F155: 24
A156: Applejack | B156: 21 | C156: 91 | D156: M | E156: =MIN(B156*C156/6,400)/(B156/2)+(control!$B$4-MIN(B156*C156/6,400))/(B156/8) -> 61.38095238 | F156: 21
A157: AppleJacks | B157: 27 | C157: 93 | D157: M | E157: =MIN(B157*C157/6,400)/(B157/2)+(control!$B$4-MIN(B157*C157/6,400))/(B157/8) -> 29.62962963 | F157: 27
A158: Applejax | B158: 20 | C158: 112 | D158: M | E158: =MIN(B158*C158/6,400)/(B158/2)+(control!$B$4-MIN(B158*C158/6,400))/(B158/8) -> 48 | F158: 24
A159: Apples | B159: 21 | C159: 79 | D159: S | E159: =MIN(B159*C159/6,400)/(B159/2)+(control!$B$4-MIN(B159*C159/6,400))/(B159/8) -> 73.38095238 | F159: 23
A160: April | B160: 22 | C160: 84 | D160: M | E160: =MIN(B160*C160/6,400)/(B160/2)+(control!$B$4-MIN(B160*C160/6,400))/(B160/8) -> 61.45454545 | F160: 23
A161: April Babe | B161: 15 | C161: 91 | D161: D | E161: =MIN(B161*C161/6,400)/(B161/2)+(control!$B$4-MIN(B161*C161/6,400))/(B161/8) -> 122.3333333 | F161: 17
A162: April Showers | B162: 22 | C162: 117 | D162: S | E162: =MIN(B162*C162/6,400)/(B162/2)+(control!$B$4-MIN(B162*C162/6,400))/(B162/8) -> 36.36363636 | F162: 26
A163: Aqua | B163: 25 | C163: 69 | D163: S | E163: =MIN(B163*C163/6,400)/(B163/2)+(control!$B$4-MIN(B163*C163/6,400))/(B163/8) -> 59 | F163: 29
A164: Aquarius | B164: 20 | C164: 84 | D164: S | E164: =MIN(B164*C164/6,400)/(B164/2)+(control!$B$4-MIN(B164*C164/6,400))/(B164/8) -> 76 | F164: 24
A165: Arabella | B165: 19 | C165: 60 | D165: S | E165: =MIN(B165*C165/6,400)/(B165/2)+(control!$B$4-MIN(B165*C165/6,400))/(B165/8) -> 108.4210526 | F165: 22
A166: Arabian Dancer | B166: 22 | C166: 66 | D166: S | E166: =MIN(B166*C166/6,400)/(B166/2)+(control!$B$4-MIN(B166*C166/6,400))/(B166/8) -> 79.45454545 | F166: 25
A167: Arabian Knight | B167: 19 | C167: 93 | D167: S | E167: =MIN(B167*C167/6,400)/(B167/2)+(control!$B$4-MIN(B167*C167/6,400))/(B167/8) -> 75.42105263 | F167: 19
A168: Arabian Night | B168: 26 | C168: 67 | D168: S | E168: =MIN(B168*C168/6,400)/(B168/2)+(control!$B$4-MIN(B168*C168/6,400))/(B168/8) -> 56.07692308 | F168: 28
A169: Aragon | B169: 15 | C169: 117 | D169: D | E169: =MIN(B169*C169/6,400)/(B169/2)+(control!$B$4-MIN(B169*C169/6,400))/(B169/8) -> 96.33333333 | F169: 18
A170: Aramis | B170: 17 | C170: 105 | D170: D | E170: =MIN(B170*C170/6,400)/(B170/2)+(control!$B$4-MIN(B170*C170/6,400))/(B170/8) -> 83.23529412 | F170: 20
A171: Arbor ann | B171: 20 | C171: 67 | D171: S | E171: =MIN(B171*C171/6,400)/(B171/2)+(control!$B$4-MIN(B171*C171/6,400))/(B171/8) -> 93 | F171: 21
A172: Arcadia | B172: 18 | C172: 61 | D172: S | E172: =MIN(B172*C172/6,400)/(B172/2)+(control!$B$4-MIN(B172*C172/6,400))/(B172/8) -> 116.7777778 | F172: 20
A173: Archer | B173: 21 | C173: 85 | D173: M | E173: =MIN(B173*C173/6,400)/(B173/2)+(control!$B$4-MIN(B173*C173/6,400))/(B173/8) -> 67.38095238 | F173: 22
A174: Archie | B174: 16 | C174: 95 | D174: S | E174: =MIN(B174*C174/6,400)/(B174/2)+(control!$B$4-MIN(B174*C174/6,400))/(B174/8) -> 105 | F174: 19
A175: Archimedes | B175: 17 | C175: 95 | D175: S | E175: =MIN(B175*C175/6,400)/(B175/2)+(control!$B$4-MIN(B175*C175/6,400))/(B175/8) -> 93.23529412 | F175: 18
A176: Arctic Sun | B176: 26 | C176: 115 | D176: S | E176: =MIN(B176*C176/6,400)/(B176/2)+(control!$B$4-MIN(B176*C176/6,400))/(B176/8) -> 30.76923077 | F176: 26
A177: Areo | B177: 21 | C177: 86 | D177: S | E177: =MIN(B177*C177/6,400)/(B177/2)+(control!$B$4-MIN(B177*C177/6,400))/(B177/8) -> 66.38095238 | F177: 24
A178: Argo | B178: 21 | C178: 80 | D178: S | E178: =MIN(B178*C178/6,400)/(B178/2)+(control!$B$4-MIN(B178*C178/6,400))/(B178/8) -> 72.38095238 | F178: 22
A179: Ariadne | B179: 26 | C179: 101 | D179: D | E179: =MIN(B179*C179/6,400)/(B179/2)+(control!$B$4-MIN(B179*C179/6,400))/(B179/8) -> 30.76923077 | F179: 30
A180: Arial | B180: 20 | C180: 99 | D180: D | E180: =MIN(B180*C180/6,400)/(B180/2)+(control!$B$4-MIN(B180*C180/6,400))/(B180/8) -> 61 | F180: 24
A181: Aries | B181: 27 | C181: 60 | D181: S | E181: =MIN(B181*C181/6,400)/(B181/2)+(control!$B$4-MIN(B181*C181/6,400))/(B181/8) -> 58.51851852 | F181: 30
A182: Aristo | B182: 18 | C182: 96 | D182: M | E182: =MIN(B182*C182/6,400)/(B182/2)+(control!$B$4-MIN(B182*C182/6,400))/(B182/8) -> 81.77777778 | F182: 18
A183: Aristotle | B183: 22 | C183: 68 | D183: S | E183: =MIN(B183*C183/6,400)/(B183/2)+(control!$B$4-MIN(B183*C183/6,400))/(B183/8) -> 77.45454545 | F183: 25
A184: Arizona | B184: 19 | C184: 91 | D184: M | E184: =MIN(B184*C184/6,400)/(B184/2)+(control!$B$4-MIN(B184*C184/6,400))/(B184/8) -> 77.42105263 | F184: 20
A185: Arizona Sunset | B185: 25 | C185: 88 | D185: M | E185: =MIN(B185*C185/6,400)/(B185/2)+(control!$B$4-MIN(B185*C185/6,400))/(B185/8) -> 40 | F185: 25
A186: Armand | B186: 15 | C186: 81 | D186: M | E186: =MIN(B186*C186/6,400)/(B186/2)+(control!$B$4-MIN(B186*C186/6,400))/(B186/8) -> 132.3333333 | F186: 15
A187: Armed & Dangerous | B187: 27 | C187: 66 | D187: M | E187: =MIN(B187*C187/6,400)/(B187/2)+(control!$B$4-MIN(B187*C187/6,400))/(B187/8) -> 52.51851852 | F187: 31
A188: Armful of Tiger Lilies | B188: 19 | C188: 89 | D188: M | E188: =MIN(B188*C188/6,400)/(B188/2)+(control!$B$4-MIN(B188*C188/6,400))/(B188/8) -> 79.42105263 | F188: 19
A189: Arnica de la Barre | B189: 19 | C189: 85 | D189: S | E189: =MIN(B189*C189/6,400)/(B189/2)+(control!$B$4-MIN(B189*C189/6,400))/(B189/8) -> 83.42105263 | F189: 21
A190: Arnie | B190: 16 | C190: 92 | D190: D | E190: =MIN(B190*C190/6,400)/(B190/2)+(control!$B$4-MIN(B190*C190/6,400))/(B190/8) -> 108 | F190: 20
A191: Arrow | B191: 26 | C191: 77 | D191: S | E191: =MIN(B191*C191/6,400)/(B191/2)+(control!$B$4-MIN(B191*C191/6,400))/(B191/8) -> 46.07692308 | F191: 26
A192: Artemis | B192: 25 | C192: 89 | D192: M | E192: =MIN(B192*C192/6,400)/(B192/2)+(control!$B$4-MIN(B192*C192/6,400))/(B192/8) -> 39 | F192: 29
A193: Artex | B193: 21 | C193: 110 | D193: S | E193: =MIN(B193*C193/6,400)/(B193/2)+(control!$B$4-MIN(B193*C193/6,400))/(B193/8) -> 42.38095238 | F193: 23
A194: Arthur | B194: 22 | C194: 103 | D194: S | E194: =MIN(B194*C194/6,400)/(B194/2)+(control!$B$4-MIN(B194*C194/6,400))/(B194/8) -> 42.45454545 | F194: 25
A195: Artist | B195: 22 | C195: 119 | D195: D | E195: =MIN(B195*C195/6,400)/(B195/2)+(control!$B$4-MIN(B195*C195/6,400))/(B195/8) -> 36.36363636 | F195: 26
A196: Artoo | B196: 16 | C196: 80 | D196: M | E196: =MIN(B196*C196/6,400)/(B196/2)+(control!$B$4-MIN(B196*C196/6,400))/(B196/8) -> 120 | F196: 19
A197: As Good As it Gets | B197: 19 | C197: 97 | D197: S | E197: =MIN(B197*C197/6,400)/(B197/2)+(control!$B$4-MIN(B197*C197/6,400))/(B197/8) -> 71.42105263 | F197: 19
A198: Asgard | B198: 18 | C198: 64 | D198: S | E198: =MIN(B198*C198/6,400)/(B198/2)+(control!$B$4-MIN(B198*C198/6,400))/(B198/8) -> 113.7777778 | F198: 19
A199: Ash | B199: 26 | C199: 87 | D199: M | E199: =MIN(B199*C199/6,400)/(B199/2)+(control!$B$4-MIN(B199*C199/6,400))/(B199/8) -> 36.07692308 | F199: 26
A200: Ash Kalini | B200: 16 | C200: 82 | D200: M | E200: =MIN(B200*C200/6,400)/(B200/2)+(control!$B$4-MIN(B200*C200/6,400))/(B200/8) -> 118 | F200: 19
... 4564 more rows

Sheet the race
A1: horse | B1: stamina remaining | C1: distance | D1: strategy | E1: speed | F1: stamina | G1: stamina cost | H1: move next turn | I1: new stamina | J1: new distance | L1: new horses | M1: race times | N1: race over? | P1: expected time | X1: APPLIED AGAINST ODDS | Y1: min roll | Z1: AGAINST ODDS? | AA1: in-race rank | AC1: =IF(AND(MAX(C2:C21)>=length_race*0.95,MAX(C2:C21)<length_race),"Y","N") -> N | AD1: <<slow down speed?
A2: Wills | B2: 0 | C2: 400 | D2: =IFERROR(VLOOKUP(A2,horses!A:D,4,FALSE),"") -> S | E2: =IFERROR(VLOOKUP(A2,horses!A:D,IF(horses!$L$7="Yes",2,6),FALSE),"") -> 17 | F2: =IFERROR(VLOOKUP(A2,horses!A:D,3,FALSE),"") -> 93 | G2: =IFERROR(IF(OR(AND(D2="D",C2<0.2*control!$B$4),AND(D2="M",C2<0.06*control!$B$4)),1,IF(AND(D2="M",C2<0.33*control!$B$4),2,MIN(3,B2))),"") -> 0 | H2: =IFERROR(IF(G2=0,RANDBETWEEN(IF(horses!$L$7="Yes",Y2,ROUNDUP(E2*0.25,0)),ROUNDUP(E2*0.25,0)),RANDBETWEEN(IF(horses!$L$7="Yes",Y2,ROUNDUP(E2*G2/3,0)),ROUNDUP(E2*G2/3,0))),"") -> 4 | I2: =B2-G2 -> 0 | J2: =IFERROR(MIN(control!$B$4,C2+H2+IF(AND(X2=1,horses!$L$7="Yes"),ROUNDUP(SQRT(B44),0),0)),"") -> 400 | L2: =IF(ROW()-1<=number_horses,IF(X23="",INDIRECT(ADDRESS(RANDBETWEEN(2,horses!$G$19),1,1,1,"horses"),TRUE),X23),"") -> Krugerrand | M2: 51 | N2: =IF(COUNTIF(M2:M21,">0")=number_horses,1,0) -> 1 | P2: =IFERROR(VLOOKUP(A2,horses!A:E,5,FALSE),"") -> 95.23529412 | R2: =IFERROR(STANDARDIZE(P2,control!$B$1,control!$B$2),"") -> 1.647719715 | S2: =IFERROR(NORMSDIST(R2),"") -> 0.9502948997 | T2: =IFERROR(1-S2,"") -> 0.04970510025 | U2: =IFERROR(T2/SUM($T$2:$T$21),"") -> 0.01879672212 | V2: =IFERROR(ROUNDUP(0.55/U2,0),"") -> 30 | W2: =IFERROR(ROUNDUP(2*V2/MIN($V$2:$V$21),0)+X2,"") -> 30 | X2: 0 | Y2: =IF(B44>25,4,IF(B44>10,3,1)) -> 4 | Z2: =IFERROR(IF(RAND()<1/B44,1,0),"") -> 0 | AA2: =IFERROR(C2+IFERROR(1/M2,0)+ROW()/10000,"") -> 400.0198078 | AB2: =IFERROR(RANK(AA2,$AA$2:$AA$21,0),"") -> 3 | AC2: =IFERROR(A2&IF(AD2="",""," ("&AD2&" )"),"") -> Wills | AD2: =IF(E44>0," 1","")&IF(F44>0," 2","")&IF(G44>0," 3","")&IF(H44>0," 4","")&IF(I44>0," 5","")&IF(J44>0," 6","")&IF(K44>0," 7","")&IF(L44>0," 8","")&IF(M44>0," 9","")&IF(N44>0," 10","")&IF(O44>0," 11","")&IF(P44>0," 12","")&IF(Q44>0," 13","")&IF(R44>0," 14","")&IF(S44>0," 15","") -> 
A3: Doris | B3: 0 | C3: 400 | D3: =IFERROR(VLOOKUP(A3,horses!A:D,4,FALSE),"") -> M | E3: =IFERROR(VLOOKUP(A3,horses!A:D,2,FALSE),"") -> 21 | F3: =IFERROR(VLOOKUP(A3,horses!A:D,3,FALSE),"") -> 87 | G3: =IFERROR(IF(OR(AND(D3="D",C3<0.2*control!$B$4),AND(D3="M",C3<0.06*control!$B$4)),1,IF(AND(D3="M",C3<0.33*control!$B$4),2,MIN(3,B3))),"") -> 0 | H3: =IFERROR(IF(G3=0,RANDBETWEEN(IF(horses!$L$7="Yes",Y3,ROUNDUP(E3*0.25,0)),ROUNDUP(E3*0.25,0)),RANDBETWEEN(IF(horses!$L$7="Yes",Y3,ROUNDUP(E3*G3/3,0)),ROUNDUP(E3*G3/3,0))),"") -> 4 | I3: =B3-G3 -> 0 | J3: =IFERROR(MIN(control!$B$4,C3+H3+IF(AND(X3=1,horses!$L$7="Yes"),ROUNDUP(SQRT(B45),0),0)),"") -> 400 | L3: =IF(ROW()-1<=number_horses,IF(X24="",INDIRECT(ADDRESS(RANDBETWEEN(2,horses!$G$19),1,1,1,"horses"),TRUE),X24),"") -> Virtual Reality | M3: 63.6 | P3: =IFERROR(VLOOKUP(A3,horses!A:E,5,FALSE),"") -> 65.38095238 | R3: =IFERROR(STANDARDIZE(P3,control!$B$1,control!$B$2),"") -> 0.1123774695 | S3: =IFERROR(NORMSDIST(R3),"") -> 0.5447379405 | T3: =IFERROR(1-S3,"") -> 0.4552620595 | U3: =IFERROR(T3/SUM($T$2:$T$21),"") -> 0.1721641116 | V3: =IFERROR(ROUNDUP(0.55/U3,0),"") -> 4 | W3: =IFERROR(ROUNDUP(2*V3/MIN($V$2:$V$21),0)+X3,"") -> 4 | X3: 0 | Y3: =IF(B45>25,4,IF(B45>10,3,1)) -> 1 | Z3: =IFERROR(IF(RAND()<1/B45,1,0),"") -> 1 | AA3: =IFERROR(C3+IFERROR(1/M3,0)+ROW()/10000,"") -> 400.0160233 | AB3: =IFERROR(RANK(AA3,$AA$2:$AA$21,0),"") -> 5 | AC3: =IFERROR(A3&IF(AD3="",""," ("&AD3&" )"),"") -> Doris | AD3: =IF(E45>0," 1","")&IF(F45>0," 2","")&IF(G45>0," 3","")&IF(H45>0," 4","")&IF(I45>0," 5","")&IF(J45>0," 6","")&IF(K45>0," 7","")&IF(L45>0," 8","")&IF(M45>0," 9","")&IF(N45>0," 10","")&IF(O45>0," 11","")&IF(P45>0," 12","")&IF(Q45>0," 13","")&IF(R45>0," 14","")&IF(S45>0," 15","") -> 
A4: Greased Lightning | B4: 0 | C4: 400 | D4: =IFERROR(VLOOKUP(A4,horses!A:D,4,FALSE),"") -> M | E4: =IFERROR(VLOOKUP(A4,horses!A:D,2,FALSE),"") -> 18 | F4: =IFERROR(VLOOKUP(A4,horses!A:D,3,FALSE),"") -> 121 | G4: =IFERROR(IF(OR(AND(D4="D",C4<0.2*control!$B$4),AND(D4="M",C4<0.06*control!$B$4)),1,IF(AND(D4="M",C4<0.33*control!$B$4),2,MIN(3,B4))),"") -> 0 | H4: =IFERROR(IF(G4=0,RANDBETWEEN(IF(horses!$L$7="Yes",Y4,ROUNDUP(E4*0.25,0)),ROUNDUP(E4*0.25,0)),RANDBETWEEN(IF(horses!$L$7="Yes",Y4,ROUNDUP(E4*G4/3,0)),ROUNDUP(E4*G4/3,0))),"") -> 3 | I4: 0 | J4: =IFERROR(MIN(control!$B$4,C4+H4+IF(AND(X4=1,horses!$L$7="Yes"),ROUNDUP(SQRT(B46),0),0)),"") -> 400 | L4: =IF(ROW()-1<=number_horses,IF(X25="",INDIRECT(ADDRESS(RANDBETWEEN(2,horses!$G$19),1,1,1,"horses"),TRUE),X25),"") -> Celtic Jewel | M4: 61.2 | P4: =IFERROR(VLOOKUP(A4,horses!A:E,5,FALSE),"") -> 56.77777778 | R4: =IFERROR(STANDARDIZE(P4,control!$B$1,control!$B$2),"") -> -0.3300646225 | S4: 0.3706755669 | T4: 0.6293244331 | U4: 0.2379883842 | V4: 3 | W4: 3 | X4: 0 | Y4: 1 | Z4: 1 | AA4: 400.0167399 | AB4: 4 | AC4: Greased Lightning
A5: Damien | B5: 0 | C5: 400 | D5: =IFERROR(VLOOKUP(A5,horses!A:D,4,FALSE),"") -> D | E5: =IFERROR(VLOOKUP(A5,horses!A:D,2,FALSE),"") -> 22 | F5: =IFERROR(VLOOKUP(A5,horses!A:D,3,FALSE),"") -> 91 | G5: =IFERROR(IF(OR(AND(D5="D",C5<0.2*control!$B$4),AND(D5="M",C5<0.06*control!$B$4)),1,IF(AND(D5="M",C5<0.33*control!$B$4),2,MIN(3,B5))),"") -> 0 | H5: =IFERROR(IF(G5=0,RANDBETWEEN(IF(horses!$L$7="Yes",Y5,ROUNDUP(E5*0.25,0)),ROUNDUP(E5*0.25,0)),RANDBETWEEN(IF(horses!$L$7="Yes",Y5,ROUNDUP(E5*G5/3,0)),ROUNDUP(E5*G5/3,0))),"") -> 4 | I5: 0 | J5: =IFERROR(MIN(control!$B$4,C5+H5+IF(AND(X5=1,horses!$L$7="Yes"),ROUNDUP(SQRT(B47),0),0)),"") -> 400 | L5: =IF(ROW()-1<=number_horses,IF(X26="",INDIRECT(ADDRESS(RANDBETWEEN(2,horses!$G$19),1,1,1,"horses"),TRUE),X26),"") -> Chickaboo | M5: 31.1 | P5: =IFERROR(VLOOKUP(A5,horses!A:E,5,FALSE),"") -> 54.45454545 | R5: =IFERROR(STANDARDIZE(P5,control!$B$1,control!$B$2),"") -> -0.4495432821 | S5: 0.3265198963 | T5: 0.6734801037 | U5: 0.254686507 | V5: 3 | W5: 4 | X5: 1 | Y5: 1 | Z5: 0 | AA5: 400.0326543 | AB5: 2 | AC5: Damien
A6: Dame de Pique | B6: 0 | C6: 400 | D6: =IFERROR(VLOOKUP(A6,horses!A:D,4,FALSE),"") -> S | E6: =IFERROR(VLOOKUP(A6,horses!A:D,2,FALSE),"") -> 23 | F6: =IFERROR(VLOOKUP(A6,horses!A:D,3,FALSE),"") -> 95 | G6: =IFERROR(IF(OR(AND(D6="D",C6<0.2*control!$B$4),AND(D6="M",C6<0.06*control!$B$4)),1,IF(AND(D6="M",C6<0.33*control!$B$4),2,MIN(3,B6))),"") -> 0 | H6: =IFERROR(IF(G6=0,RANDBETWEEN(IF(horses!$L$7="Yes",Y6,ROUNDUP(E6*0.25,0)),ROUNDUP(E6*0.25,0)),RANDBETWEEN(IF(horses!$L$7="Yes",Y6,ROUNDUP(E6*G6/3,0)),ROUNDUP(E6*G6/3,0))),"") -> 3 | I6: 0 | J6: =IFERROR(MIN(control!$B$4,C6+H6+IF(AND(X6=1,horses!$L$7="Yes"),ROUNDUP(SQRT(B48),0),0)),"") -> 400 | L6: =IF(ROW()-1<=number_horses,IF(X27="",INDIRECT(ADDRESS(RANDBETWEEN(2,horses!$G$19),1,1,1,"horses"),TRUE),X27),"") -> Sierra | M6: 26.29411765 | P6: =IFERROR(VLOOKUP(A6,horses!A:E,5,FALSE),"") -> 44.13043478 | R6: =IFERROR(STANDARDIZE(P6,control!$B$1,control!$B$2),"") -> -0.9804892798 | S6: 0.1634223294 | T6: 0.8365776706 | U6: 0.3163642751 | V6: 2 | W6: 3 | X6: 1 | Y6: 1 | Z6: 0 | AA6: 400.0386313 | AB6: 1 | AC6: Dame de Pique
B7: 0 | D7: =IFERROR(VLOOKUP(A7,horses!A:D,4,FALSE),"") ->  | E7: =IFERROR(VLOOKUP(A7,horses!A:D,2,FALSE),"") ->  | F7: =IFERROR(VLOOKUP(A7,horses!A:D,3,FALSE),"") ->  | G7: =IFERROR(IF(OR(AND(D7="D",C7<0.2*control!$B$4),AND(D7="M",C7<0.06*control!$B$4)),1,IF(AND(D7="M",C7<0.33*control!$B$4),2,MIN(3,B7))),"") -> 0 | H7: =IFERROR(IF(G7=0,RANDBETWEEN(IF(horses!$L$7="Yes",Y7,ROUNDUP(E7*0.25,0)),ROUNDUP(E7*0.25,0)),RANDBETWEEN(IF(horses!$L$7="Yes",Y7,ROUNDUP(E7*G7/3,0)),ROUNDUP(E7*G7/3,0))),"") ->  | I7: 0 | J7: =IFERROR(MIN(control!$B$4,C7+H7+IF(AND(X7=1,horses!$L$7="Yes"),ROUNDUP(SQRT(B49),0),0)),"") ->  | L7: =IF(ROW()-1<=number_horses,IF(X28="",INDIRECT(ADDRESS(RANDBETWEEN(2,horses!$G$19),1,1,1,"horses"),TRUE),X28),"") ->  | M7: 0 | P7: =IFERROR(VLOOKUP(A7,horses!A:E,5,FALSE),"") ->  | R7: =IFERROR(STANDARDIZE(P7,control!$B$1,control!$B$2),"") ->  | Y7: 4 | AA7: 0.0007 | AB7: 20
B8: 0 | D8: =IFERROR(VLOOKUP(A8,horses!A:D,4,FALSE),"") ->  | E8: =IFERROR(VLOOKUP(A8,horses!A:D,2,FALSE),"") ->  | F8: =IFERROR(VLOOKUP(A8,horses!A:D,3,FALSE),"") ->  | G8: =IFERROR(IF(OR(AND(D8="D",C8<0.2*control!$B$4),AND(D8="M",C8<0.06*control!$B$4)),1,IF(AND(D8="M",C8<0.33*control!$B$4),2,MIN(3,B8))),"") -> 0 | H8: =IFERROR(IF(G8=0,RANDBETWEEN(IF(horses!$L$7="Yes",Y8,ROUNDUP(E8*0.25,0)),ROUNDUP(E8*0.25,0)),RANDBETWEEN(IF(horses!$L$7="Yes",Y8,ROUNDUP(E8*G8/3,0)),ROUNDUP(E8*G8/3,0))),"") ->  | I8: 0 | J8: =IFERROR(MIN(control!$B$4,C8+H8+IF(AND(X8=1,horses!$L$7="Yes"),ROUNDUP(SQRT(B50),0),0)),"") ->  | L8: =IF(ROW()-1<=number_horses,IF(X29="",INDIRECT(ADDRESS(RANDBETWEEN(2,horses!$G$19),1,1,1,"horses"),TRUE),X29),"") ->  | M8: 0 | P8: =IFERROR(VLOOKUP(A8,horses!A:E,5,FALSE),"") ->  | R8: =IFERROR(STANDARDIZE(P8,control!$B$1,control!$B$2),"") ->  | Y8: 4 | AA8: 0.0008 | AB8: 19
B9: 0 | D9: =IFERROR(VLOOKUP(A9,horses!A:D,4,FALSE),"") ->  | E9: =IFERROR(VLOOKUP(A9,horses!A:D,2,FALSE),"") ->  | F9: =IFERROR(VLOOKUP(A9,horses!A:D,3,FALSE),"") ->  | G9: =IFERROR(IF(OR(AND(D9="D",C9<0.2*control!$B$4),AND(D9="M",C9<0.06*control!$B$4)),1,IF(AND(D9="M",C9<0.33*control!$B$4),2,MIN(3,B9))),"") -> 0 | H9: =IFERROR(IF(G9=0,RANDBETWEEN(IF(horses!$L$7="Yes",Y9,ROUNDUP(E9*0.25,0)),ROUNDUP(E9*0.25,0)),RANDBETWEEN(IF(horses!$L$7="Yes",Y9,ROUNDUP(E9*G9/3,0)),ROUNDUP(E9*G9/3,0))),"") ->  | I9: 0 | J9: =IFERROR(MIN(control!$B$4,C9+H9+IF(AND(X9=1,horses!$L$7="Yes"),ROUNDUP(SQRT(B51),0),0)),"") ->  | L9: =IF(ROW()-1<=number_horses,IF(X30="",INDIRECT(ADDRESS(RANDBETWEEN(2,horses!$G$19),1,1,1,"horses"),TRUE),X30),"") ->  | M9: 0 | P9: =IFERROR(VLOOKUP(A9,horses!A:E,5,FALSE),"") ->  | R9: =IFERROR(STANDARDIZE(P9,control!$B$1,control!$B$2),"") ->  | Y9: 4 | AA9: 0.0009 | AB9: 18
B10: 0 | D10: =IFERROR(VLOOKUP(A10,horses!A:D,4,FALSE),"") ->  | E10: =IFERROR(VLOOKUP(A10,horses!A:D,2,FALSE),"") ->  | F10: =IFERROR(VLOOKUP(A10,horses!A:D,3,FALSE),"") ->  | G10: =IFERROR(IF(OR(AND(D10="D",C10<0.2*control!$B$4),AND(D10="M",C10<0.06*control!$B$4)),1,IF(AND(D10="M",C10<0.33*control!$B$4),2,MIN(3,B10))),"") -> 0 | H10: =IFERROR(IF(G10=0,RANDBETWEEN(IF(horses!$L$7="Yes",Y10,ROUNDUP(E10*0.25,0)),ROUNDUP(E10*0.25,0)),RANDBETWEEN(IF(horses!$L$7="Yes",Y10,ROUNDUP(E10*G10/3,0)),ROUNDUP(E10*G10/3,0))),"") ->  | I10: 0 | J10: =IFERROR(MIN(control!$B$4,C10+H10+IF(AND(X10=1,horses!$L$7="Yes"),ROUNDUP(SQRT(B52),0),0)),"") ->  | L10: =IF(ROW()-1<=number_horses,IF(X31="",INDIRECT(ADDRESS(RANDBETWEEN(2,horses!$G$19),1,1,1,"horses"),TRUE),X31),"") ->  | M10: 0 | P10: =IFERROR(VLOOKUP(A10,horses!A:E,5,FALSE),"") ->  | R10: =IFERROR(STANDARDIZE(P10,control!$B$1,control!$B$2),"") ->  | Y10: =IF(B52>25,4,IF(B52>10,3,1)) -> 4 | AA10: 0.001 | AB10: 17
B11: 0 | D11: =IFERROR(VLOOKUP(A11,horses!A:D,4,FALSE),"") ->  | E11: =IFERROR(VLOOKUP(A11,horses!A:D,2,FALSE),"") ->  | F11: =IFERROR(VLOOKUP(A11,horses!A:D,3,FALSE),"") ->  | G11: =IFERROR(IF(OR(AND(D11="D",C11<0.2*control!$B$4),AND(D11="M",C11<0.06*control!$B$4)),1,IF(AND(D11="M",C11<0.33*control!$B$4),2,MIN(3,B11))),"") -> 0 | H11: =IFERROR(IF(G11=0,RANDBETWEEN(IF(horses!$L$7="Yes",Y11,ROUNDUP(E11*0.25,0)),ROUNDUP(E11*0.25,0)),RANDBETWEEN(IF(horses!$L$7="Yes",Y11,ROUNDUP(E11*G11/3,0)),ROUNDUP(E11*G11/3,0))),"") ->  | I11: 0 | J11: =IFERROR(MIN(control!$B$4,C11+H11+IF(AND(X11=1,horses!$L$7="Yes"),ROUNDUP(SQRT(B53),0),0)),"") ->  | L11: =IF(ROW()-1<=number_horses,IF(X32="",INDIRECT(ADDRESS(RANDBETWEEN(2,horses!$G$19),1,1,1,"horses"),TRUE),X32),"") ->  | M11: 0 | P11: =IFERROR(VLOOKUP(A11,horses!A:E,5,FALSE),"") ->  | R11: =IFERROR(STANDARDIZE(P11,control!$B$1,control!$B$2),"") ->  | Y11: 4 | AA11: 0.0011 | AB11: 16
B12: 0 | D12: =IFERROR(VLOOKUP(A12,horses!A:D,4,FALSE),"") ->  | E12: =IFERROR(VLOOKUP(A12,horses!A:D,2,FALSE),"") ->  | F12: =IFERROR(VLOOKUP(A12,horses!A:D,3,FALSE),"") ->  | G12: =IFERROR(IF(OR(AND(D12="D",C12<0.2*control!$B$4),AND(D12="M",C12<0.06*control!$B$4)),1,IF(AND(D12="M",C12<0.33*control!$B$4),2,MIN(3,B12))),"") -> 0 | H12: =IFERROR(IF(G12=0,RANDBETWEEN(IF(horses!$L$7="Yes",Y12,ROUNDUP(E12*0.25,0)),ROUNDUP(E12*0.25,0)),RANDBETWEEN(IF(horses!$L$7="Yes",Y12,ROUNDUP(E12*G12/3,0)),ROUNDUP(E12*G12/3,0))),"") ->  | I12: 0 | J12: =IFERROR(MIN(control!$B$4,C12+H12+IF(AND(X12=1,horses!$L$7="Yes"),ROUNDUP(SQRT(B54),0),0)),"") ->  | L12: =IF(ROW()-1<=number_horses,IF(X33="",INDIRECT(ADDRESS(RANDBETWEEN(2,horses!$G$19),1,1,1,"horses"),TRUE),X33),"") ->  | M12: 0 | P12: =IFERROR(VLOOKUP(A12,horses!A:E,5,FALSE),"") ->  | R12: =IFERROR(STANDARDIZE(P12,control!$B$1,control!$B$2),"") ->  | Y12: 4 | AA12: 0.0012 | AB12: 15
B13: 0 | D13: =IFERROR(VLOOKUP(A13,horses!A:D,4,FALSE),"") ->  | E13: =IFERROR(VLOOKUP(A13,horses!A:D,2,FALSE),"") ->  | F13: =IFERROR(VLOOKUP(A13,horses!A:D,3,FALSE),"") ->  | G13: =IFERROR(IF(OR(AND(D13="D",C13<0.2*control!$B$4),AND(D13="M",C13<0.06*control!$B$4)),1,IF(AND(D13="M",C13<0.33*control!$B$4),2,MIN(3,B13))),"") -> 0 | H13: =IFERROR(IF(G13=0,RANDBETWEEN(IF(horses!$L$7="Yes",Y13,ROUNDUP(E13*0.25,0)),ROUNDUP(E13*0.25,0)),RANDBETWEEN(IF(horses!$L$7="Yes",Y13,ROUNDUP(E13*G13/3,0)),ROUNDUP(E13*G13/3,0))),"") ->  | I13: 0 | J13: =IFERROR(MIN(control!$B$4,C13+H13+IF(AND(X13=1,horses!$L$7="Yes"),ROUNDUP(SQRT(B55),0),0)),"") ->  | L13: =IF(ROW()-1<=number_horses,IF(X34="",INDIRECT(ADDRESS(RANDBETWEEN(2,horses!$G$19),1,1,1,"horses"),TRUE),X34),"") ->  | M13: 0 | P13: =IFERROR(VLOOKUP(A13,horses!A:E,5,FALSE),"") ->  | R13: =IFERROR(STANDARDIZE(P13,control!$B$1,control!$B$2),"") ->  | Y13: 4 | AA13: 0.0013 | AB13: 14
B14: 0 | D14: =IFERROR(VLOOKUP(A14,horses!A:D,4,FALSE),"") ->  | E14: =IFERROR(VLOOKUP(A14,horses!A:D,2,FALSE),"") ->  | F14: =IFERROR(VLOOKUP(A14,horses!A:D,3,FALSE),"") ->  | G14: =IFERROR(IF(OR(AND(D14="D",C14<0.2*control!$B$4),AND(D14="M",C14<0.06*control!$B$4)),1,IF(AND(D14="M",C14<0.33*control!$B$4),2,MIN(3,B14))),"") -> 0 | H14: =IFERROR(IF(G14=0,RANDBETWEEN(IF(horses!$L$7="Yes",Y14,ROUNDUP(E14*0.25,0)),ROUNDUP(E14*0.25,0)),RANDBETWEEN(IF(horses!$L$7="Yes",Y14,ROUNDUP(E14*G14/3,0)),ROUNDUP(E14*G14/3,0))),"") ->  | I14: 0 | J14: =IFERROR(MIN(control!$B$4,C14+H14+IF(AND(X14=1,horses!$L$7="Yes"),ROUNDUP(SQRT(B56),0),0)),"") ->  | L14: =IF(ROW()-1<=number_horses,IF(X35="",INDIRECT(ADDRESS(RANDBETWEEN(2,horses!$G$19),1,1,1,"horses"),TRUE),X35),"") ->  | M14: 0 | P14: =IFERROR(VLOOKUP(A14,horses!A:E,5,FALSE),"") ->  | R14: =IFERROR(STANDARDIZE(P14,control!$B$1,control!$B$2),"") ->  | Y14: 4 | AA14: 0.0014 | AB14: 13
B15: 0 | D15: =IFERROR(VLOOKUP(A15,horses!A:D,4,FALSE),"") ->  | E15: =IFERROR(VLOOKUP(A15,horses!A:D,2,FALSE),"") ->  | F15: =IFERROR(VLOOKUP(A15,horses!A:D,3,FALSE),"") ->  | G15: =IFERROR(IF(OR(AND(D15="D",C15<0.2*control!$B$4),AND(D15="M",C15<0.06*control!$B$4)),1,IF(AND(D15="M",C15<0.33*control!$B$4),2,MIN(3,B15))),"") -> 0 | H15: =IFERROR(IF(G15=0,RANDBETWEEN(IF(horses!$L$7="Yes",Y15,ROUNDUP(E15*0.25,0)),ROUNDUP(E15*0.25,0)),RANDBETWEEN(IF(horses!$L$7="Yes",Y15,ROUNDUP(E15*G15/3,0)),ROUNDUP(E15*G15/3,0))),"") ->  | I15: 0 | J15: =IFERROR(MIN(control!$B$4,C15+H15+IF(AND(X15=1,horses!$L$7="Yes"),ROUNDUP(SQRT(B57),0),0)),"") ->  | L15: =IF(ROW()-1<=number_horses,IF(X36="",INDIRECT(ADDRESS(RANDBETWEEN(2,horses!$G$19),1,1,1,"horses"),TRUE),X36),"") ->  | M15: 0 | P15: =IFERROR(VLOOKUP(A15,horses!A:E,5,FALSE),"") ->  | R15: =IFERROR(STANDARDIZE(P15,control!$B$1,control!$B$2),"") ->  | Y15: 4 | AA15: 0.0015 | AB15: 12
B16: 0 | D16: =IFERROR(VLOOKUP(A16,horses!A:D,4,FALSE),"") ->  | E16: =IFERROR(VLOOKUP(A16,horses!A:D,2,FALSE),"") ->  | F16: =IFERROR(VLOOKUP(A16,horses!A:D,3,FALSE),"") ->  | G16: =IFERROR(IF(OR(AND(D16="D",C16<0.2*control!$B$4),AND(D16="M",C16<0.06*control!$B$4)),1,IF(AND(D16="M",C16<0.33*control!$B$4),2,MIN(3,B16))),"") -> 0 | H16: =IFERROR(IF(G16=0,RANDBETWEEN(IF(horses!$L$7="Yes",Y16,ROUNDUP(E16*0.25,0)),ROUNDUP(E16*0.25,0)),RANDBETWEEN(IF(horses!$L$7="Yes",Y16,ROUNDUP(E16*G16/3,0)),ROUNDUP(E16*G16/3,0))),"") ->  | I16: 0 | J16: =IFERROR(MIN(control!$B$4,C16+H16+IF(AND(X16=1,horses!$L$7="Yes"),ROUNDUP(SQRT(B58),0),0)),"") ->  | L16: =IF(ROW()-1<=number_horses,IF(X37="",INDIRECT(ADDRESS(RANDBETWEEN(2,horses!$G$19),1,1,1,"horses"),TRUE),X37),"") ->  | M16: 0 | P16: =IFERROR(VLOOKUP(A16,horses!A:E,5,FALSE),"") ->  | R16: =IFERROR(STANDARDIZE(P16,control!$B$1,control!$B$2),"") ->  | Y16: 4 | AA16: 0.0016 | AB16: 11
B17: 0 | D17: =IFERROR(VLOOKUP(A17,horses!A:D,4,FALSE),"") ->  | E17: =IFERROR(VLOOKUP(A17,horses!A:D,2,FALSE),"") ->  | F17: =IFERROR(VLOOKUP(A17,horses!A:D,3,FALSE),"") ->  | G17: =IFERROR(IF(OR(AND(D17="D",C17<0.2*control!$B$4),AND(D17="M",C17<0.06*control!$B$4)),1,IF(AND(D17="M",C17<0.33*control!$B$4),2,MIN(3,B17))),"") -> 0 | H17: =IFERROR(IF(G17=0,RANDBETWEEN(IF(horses!$L$7="Yes",Y17,ROUNDUP(E17*0.25,0)),ROUNDUP(E17*0.25,0)),RANDBETWEEN(IF(horses!$L$7="Yes",Y17,ROUNDUP(E17*G17/3,0)),ROUNDUP(E17*G17/3,0))),"") ->  | I17: 0 | J17: =IFERROR(MIN(control!$B$4,C17+H17+IF(AND(X17=1,horses!$L$7="Yes"),ROUNDUP(SQRT(B59),0),0)),"") ->  | L17: =IF(ROW()-1<=number_horses,IF(X38="",INDIRECT(ADDRESS(RANDBETWEEN(2,horses!$G$19),1,1,1,"horses"),TRUE),X38),"") ->  | M17: 0 | P17: =IFERROR(VLOOKUP(A17,horses!A:E,5,FALSE),"") ->  | R17: =IFERROR(STANDARDIZE(P17,control!$B$1,control!$B$2),"") ->  | Y17: 4 | AA17: 0.0017 | AB17: 10
B18: 0 | D18: =IFERROR(VLOOKUP(A18,horses!A:D,4,FALSE),"") ->  | E18: =IFERROR(VLOOKUP(A18,horses!A:D,2,FALSE),"") ->  | F18: =IFERROR(VLOOKUP(A18,horses!A:D,3,FALSE),"") ->  | G18: =IFERROR(IF(OR(AND(D18="D",C18<0.2*control!$B$4),AND(D18="M",C18<0.06*control!$B$4)),1,IF(AND(D18="M",C18<0.33*control!$B$4),2,MIN(3,B18))),"") -> 0 | H18: =IFERROR(IF(G18=0,RANDBETWEEN(IF(horses!$L$7="Yes",Y18,ROUNDUP(E18*0.25,0)),ROUNDUP(E18*0.25,0)),RANDBETWEEN(IF(horses!$L$7="Yes",Y18,ROUNDUP(E18*G18/3,0)),ROUNDUP(E18*G18/3,0))),"") ->  | I18: 0 | J18: =IFERROR(MIN(control!$B$4,C18+H18+IF(AND(X18=1,horses!$L$7="Yes"),ROUNDUP(SQRT(B60),0),0)),"") ->  | L18: =IF(ROW()-1<=number_horses,IF(X39="",INDIRECT(ADDRESS(RANDBETWEEN(2,horses!$G$19),1,1,1,"horses"),TRUE),X39),"") ->  | M18: 0 | P18: =IFERROR(VLOOKUP(A18,horses!A:E,5,FALSE),"") ->  | R18: =IFERROR(STANDARDIZE(P18,control!$B$1,control!$B$2),"") ->  | Y18: 4 | AA18: 0.0018 | AB18: 9
B19: 0 | D19: =IFERROR(VLOOKUP(A19,horses!A:D,4,FALSE),"") ->  | E19: =IFERROR(VLOOKUP(A19,horses!A:D,2,FALSE),"") ->  | F19: =IFERROR(VLOOKUP(A19,horses!A:D,3,FALSE),"") ->  | G19: =IFERROR(IF(OR(AND(D19="D",C19<0.2*control!$B$4),AND(D19="M",C19<0.06*control!$B$4)),1,IF(AND(D19="M",C19<0.33*control!$B$4),2,MIN(3,B19))),"") -> 0 | H19: =IFERROR(IF(G19=0,RANDBETWEEN(IF(horses!$L$7="Yes",Y19,ROUNDUP(E19*0.25,0)),ROUNDUP(E19*0.25,0)),RANDBETWEEN(IF(horses!$L$7="Yes",Y19,ROUNDUP(E19*G19/3,0)),ROUNDUP(E19*G19/3,0))),"") ->  | I19: 0 | J19: =IFERROR(MIN(control!$B$4,C19+H19+IF(AND(X19=1,horses!$L$7="Yes"),ROUNDUP(SQRT(B61),0),0)),"") ->  | L19: =IF(ROW()-1<=number_horses,IF(X40="",INDIRECT(ADDRESS(RANDBETWEEN(2,horses!$G$19),1,1,1,"horses"),TRUE),X40),"") ->  | M19: 0 | P19: =IFERROR(VLOOKUP(A19,horses!A:E,5,FALSE),"") ->  | R19: =IFERROR(STANDARDIZE(P19,control!$B$1,control!$B$2),"") ->  | Y19: 4 | AA19: 0.0019 | AB19: 8
B20: 0 | D20: =IFERROR(VLOOKUP(A20,horses!A:D,4,FALSE),"") ->  | E20: =IFERROR(VLOOKUP(A20,horses!A:D,2,FALSE),"") ->  | F20: =IFERROR(VLOOKUP(A20,horses!A:D,3,FALSE),"") ->  | G20: =IFERROR(IF(OR(AND(D20="D",C20<0.2*control!$B$4),AND(D20="M",C20<0.06*control!$B$4)),1,IF(AND(D20="M",C20<0.33*control!$B$4),2,MIN(3,B20))),"") -> 0 | H20: =IFERROR(IF(G20=0,RANDBETWEEN(IF(horses!$L$7="Yes",Y20,ROUNDUP(E20*0.25,0)),ROUNDUP(E20*0.25,0)),RANDBETWEEN(IF(horses!$L$7="Yes",Y20,ROUNDUP(E20*G20/3,0)),ROUNDUP(E20*G20/3,0))),"") ->  | I20: 0 | J20: =IFERROR(MIN(control!$B$4,C20+H20+IF(AND(X20=1,horses!$L$7="Yes"),ROUNDUP(SQRT(B62),0),0)),"") ->  | L20: =IF(ROW()-1<=number_horses,IF(X41="",INDIRECT(ADDRESS(RANDBETWEEN(2,horses!$G$19),1,1,1,"horses"),TRUE),X41),"") ->  | M20: 0 | P20: =IFERROR(VLOOKUP(A20,horses!A:E,5,FALSE),"") ->  | R20: =IFERROR(STANDARDIZE(P20,control!$B$1,control!$B$2),"") ->  | Y20: 4 | AA20: 0.002 | AB20: 7
B21: 0 | D21: =IFERROR(VLOOKUP(A21,horses!A:D,4,FALSE),"") ->  | E21: =IFERROR(VLOOKUP(A21,horses!A:D,2,FALSE),"") ->  | F21: =IFERROR(VLOOKUP(A21,horses!A:D,3,FALSE),"") ->  | G21: =IFERROR(IF(OR(AND(D21="D",C21<0.2*control!$B$4),AND(D21="M",C21<0.06*control!$B$4)),1,IF(AND(D21="M",C21<0.33*control!$B$4),2,MIN(3,B21))),"") -> 0 | H21: =IFERROR(IF(G21=0,RANDBETWEEN(IF(horses!$L$7="Yes",Y21,ROUNDUP(E21*0.25,0)),ROUNDUP(E21*0.25,0)),RANDBETWEEN(IF(horses!$L$7="Yes",Y21,ROUNDUP(E21*G21/3,0)),ROUNDUP(E21*G21/3,0))),"") ->  | I21: 0 | J21: =IFERROR(MIN(control!$B$4,C21+H21+IF(AND(X21=1,horses!$L$7="Yes"),ROUNDUP(SQRT(B63),0),0)),"") ->  | L21: =IF(ROW()-1<=number_horses,IF(X42="",INDIRECT(ADDRESS(RANDBETWEEN(2,horses!$G$19),1,1,1,"horses"),TRUE),X42),"") ->  | M21: 0 | P21: =IFERROR(VLOOKUP(A21,horses!A:E,5,FALSE),"") ->  | R21: =IFERROR(STANDARDIZE(P21,control!$B$1,control!$B$2),"") ->  | Y21: 4 | AA21: 0.0021 | AB21: 6
X22: Select Horses for Race
A23: =IF(A2=0,"",A2) -> Wills | B23: =C2*400/$G$71 -> 400 | O23: =IF(ROW()-ROW($O$22)<=number_horses,ROW()-ROW($O$22),"") -> 1 | P23: =IFERROR(VLOOKUP(O23,$AB$2:$AC$21,2,FALSE),"") -> Dame de Pique | W23: leave blank for random horses >
A24: =IF(A3=0,"",A3) -> Doris | B24: 400 | O24: 2 | P24: =IFERROR(VLOOKUP(O24,$AB$2:$AC$21,2,FALSE),"") -> Damien
A25: Greased Lightning | B25: 400 | O25: 3 | P25: Wills
A26: Damien | B26: 400 | O26: 4 | P26: Greased Lightning
A27: Dame de Pique | B27: 400 | O27: 5 | P27: Doris
B28: 0
B29: 0 | Y29: 0.1
B30: 0 | Y30: 400 | Z30: meters
B31: 0 | Y31: 5
B32: =C11*400/$G$71 -> 0
B33: 0
B34: 0
B35: 0
B36: 0
B37: 0
B38: 0
B39: 0
B40: 0
B41: 0
B42: 0
A43: BETS | B43: Odds | C43: Time | D43: Position | V43: Player | X43: ENTER NAME
A44: =IF(A23="","",A23) -> Wills | B44: =V2 -> 30 | C44: =IF(A44="","",IF(control!$B$3=0,"",IF(M2="","",M2))) -> 51 | D44: =IF(A44="","",IFERROR(RANK(C44,$C$44:$C$48,1),"")) -> 3 | V44: Cash | X44: =IFERROR(IF($X$43="ENTER NAME","",VLOOKUP($X$43,players!A:H,ROW()-ROW($X$43)+1,FALSE)),"") -> 
A45: =IF(A24="","",A24) -> Doris | B45: =V3 -> 4 | C45: =IF(A45="","",IF(control!$B$3=0,"",IF(M3="","",M3))) -> 63.6 | D45: =IF(A45="","",IFERROR(RANK(C45,$C$44:$C$48,1),"")) -> 5 | V45: Number of Bets | X45: =IFERROR(IF($X$43="ENTER NAME","",VLOOKUP($X$43,players!A:H,ROW()-ROW($X$43)+1,FALSE)),"") -> 
A46: Greased Lightning | B46: 3 | C46: =IF(A46="","",IF(control!$B$3=0,"",IF(M4="","",M4))) -> 61.2 | D46: =IF(A46="","",IFERROR(RANK(C46,$C$44:$C$48,1),"")) -> 4 | V46: Average Winnings | X46: =IFERROR(IF($X$43="ENTER NAME","",VLOOKUP($X$43,players!A:H,ROW()-ROW($X$43)+1,FALSE)),"") -> 
A47: Damien | B47: 3 | C47: =IF(A47="","",IF(control!$B$3=0,"",IF(M5="","",M5))) -> 31.1 | D47: =IF(A47="","",IFERROR(RANK(C47,$C$44:$C$48,1),"")) -> 2 | V47: Biggest Win | X47: =IFERROR(IF($X$43="ENTER NAME","",VLOOKUP($X$43,players!A:H,ROW()-ROW($X$43)+1,FALSE)),"") -> 
A48: Dame de Pique | B48: 2 | C48: =IF(A48="","",IF(control!$B$3=0,"",IF(M6="","",M6))) -> 26.29411765 | D48: =IF(A48="","",IFERROR(RANK(C48,$C$44:$C$48,1),"")) -> 1
C49: =IF(A49="","",IF(control!$B$3=0,"",IF(M7="","",M7))) ->  | D49: =IF(A49="","",IFERROR(RANK(C49,$C$44:$C$63,1),"")) ->  | V49: CREATE A HORSE
C50: =IF(A50="","",IF(control!$B$3=0,"",IF(M8="","",M8))) ->  | V50: Name | W50: Name | Z50: =IF(COUNTIF(horses!A:A,'the race'!X50)>0,"Duplicate",IF(X50="","Invalid","")) -> Invalid
C51: =IF(A51="","",IF(control!$B$3=0,"",IF(M9="","",M9))) ->  | V51: Speed | W51: Speed | Z51: =IF(X51<=0,"Invalid","") -> Invalid
C52: =IF(A52="","",IF(control!$B$3=0,"",IF(M10="","",M10))) ->  | V52: Speed Units | Z52: =IF(OR(X52="mph",X52="m/s"),"","Invalid") -> Invalid
C53: =IF(A53="","",IF(control!$B$3=0,"",IF(M11="","",M11))) ->  | V53: Stamina | W53: Stamina | Z53: =IF(X53<=0,"Invalid","") -> Invalid
C54: =IF(A54="","",IF(control!$B$3=0,"",IF(M12="","",M12))) ->  | V54: Strategy | Z54: =IF(OR(X54="D",X54="M",X54="S"),"","Invalid") -> Invalid
C55: =IF(A55="","",IF(control!$B$3=0,"",IF(M13="","",M13))) -> 
C56: =IF(A56="","",IF(control!$B$3=0,"",IF(M14="","",M14))) -> 
C57: =IF(A57="","",IF(control!$B$3=0,"",IF(M15="","",M15))) -> 
C58: =IF(A58="","",IF(control!$B$3=0,"",IF(M16="","",M16))) -> 
C59: =IF(A59="","",IF(control!$B$3=0,"",IF(M17="","",M17))) -> 
C60: =IF(A60="","",IF(control!$B$3=0,"",IF(M18="","",M18))) -> 
C61: =IF(A61="","",IF(control!$B$3=0,"",IF(M19="","",M19))) -> 
C62: =IF(A62="","",IF(control!$B$3=0,"",IF(M20="","",M20))) -> 
C63: =IF(A63="","",IF(control!$B$3=0,"",IF(M21="","",M21))) -> 
A64: PLAYER SUMMARY | B64: Payout | D64: =IFERROR(IFERROR(D44*$A$65*$B$44,0)+IFERROR(D45*$A$66*$B$45,0)+IFERROR(D46*$A$67*$B$46,0)+IFERROR(D47*$A$68*$B$47,0)+IFERROR(D48*$A$69*$B$48,0)+IFERROR(D49*$A$70*$B$49,0)+IFERROR(D50*$A$71*$B$50,0)+IFERROR(D51*$A$72*$B$51,0)+IFERROR(D52*$A$73*$B$52,0)+IFERROR(D53*$A$74*$B$53,0)+IFERROR(D54*$A$75*$B$54,0)+IFERROR(D55*$A$76*$B$55,0)+IFERROR(D56*$A$77*$B$56,0)+IFERROR(D57*$A$78*$B$57,0)+IFERROR(D58*$A$79*$B$58,0)+IFERROR(D59*$A$80*$B$59,0)+IFERROR(D60*$A$81*$B$60,0)+IFERROR(D61*$A$82*$B$61,0)+IFERROR(D62*$A$83*$B$62,0)+IFERROR(D63*$A$84*$B$63,0),"") -> 35 | E64: =IFERROR(IFERROR(E44*$A$65*$B$44,0)+IFERROR(E45*$A$66*$B$45,0)+IFERROR(E46*$A$67*$B$46,0)+IFERROR(E47*$A$68*$B$47,0)+IFERROR(E48*$A$69*$B$48,0)+IFERROR(E49*$A$70*$B$49,0)+IFERROR(E50*$A$71*$B$50,0)+IFERROR(E51*$A$72*$B$51,0)+IFERROR(E52*$A$73*$B$52,0)+IFERROR(E53*$A$74*$B$53,0)+IFERROR(E54*$A$75*$B$54,0)+IFERROR(E55*$A$76*$B$55,0)+IFERROR(E56*$A$77*$B$56,0)+IFERROR(E57*$A$78*$B$57,0)+IFERROR(E58*$A$79*$B$58,0)+IFERROR(E59*$A$80*$B$59,0)+IFERROR(E60*$A$81*$B$60,0)+IFERROR(E61*$A$82*$B$61,0)+IFERROR(E62*$A$83*$B$62,0)+IFERROR(E63*$A$84*$B$63,0),"") -> 0 | F64: 0 | G64: 0 | H64: 0 | I64: 0 | J64: 0 | K64: 0 | L64: 0 | M64: 0 | N64: 0 | O64: 0 | P64: 0 | Q64: =IFERROR(IFERROR(Q44*$A$65*$B$44,0)+IFERROR(Q45*$A$66*$B$45,0)+IFERROR(Q46*$A$67*$B$46,0)+IFERROR(Q47*$A$68*$B$47,0)+IFERROR(Q48*$A$69*$B$48,0)+IFERROR(Q49*$A$70*$B$49,0)+IFERROR(Q50*$A$71*$B$50,0)+IFERROR(Q51*$A$72*$B$51,0)+IFERROR(Q52*$A$73*$B$52,0)+IFERROR(Q53*$A$74*$B$53,0)+IFERROR(Q54*$A$75*$B$54,0)+IFERROR(Q55*$A$76*$B$55,0)+IFERROR(Q56*$A$77*$B$56,0)+IFERROR(Q57*$A$78*$B$57,0)+IFERROR(Q58*$A$79*$B$58,0)+IFERROR(Q59*$A$80*$B$59,0)+IFERROR(Q60*$A$81*$B$60,0)+IFERROR(Q61*$A$82*$B$61,0)+IFERROR(Q62*$A$83*$B$62,0)+IFERROR(Q63*$A$84*$B$63,0),"") -> 0 | R64: 0 | S64: =IFERROR(IFERROR(S44*$A$65*$B$44,0)+IFERROR(S45*$A$66*$B$45,0)+IFERROR(S46*$A$67*$B$46,0)+IFERROR(S47*$A$68*$B$47,0)+IFERROR(S48*$A$69*$B$48,0)+IFERROR(S49*$A$70*$B$49,0)+IFERROR(S50*$A$71*$B$50,0)+IFERROR(S51*$A$72*$B$51,0)+IFERROR(S52*$A$73*$B$52,0)+IFERROR(S53*$A$74*$B$53,0)+IFERROR(S54*$A$75*$B$54,0)+IFERROR(S55*$A$76*$B$55,0)+IFERROR(S56*$A$77*$B$56,0)+IFERROR(S57*$A$78*$B$57,0)+IFERROR(S58*$A$79*$B$58,0)+IFERROR(S59*$A$80*$B$59,0)+IFERROR(S60*$A$81*$B$60,0)+IFERROR(S61*$A$82*$B$61,0)+IFERROR(S62*$A$83*$B$62,0)+IFERROR(S63*$A$84*$B$63,0),"") -> 0
A65: =IFERROR(IF(RANK(C44,$C$44:$C$63,1)=1,1,IF(RANK(C44,$C$44:$C$63,1)=2,0.5,IF(RANK(C44,$C$44:$C$63,1)=3,1/3,0))),"") -> 0.3333333333 | D65: *1st place: full payout; 2nd place: 1/2 payout; 3rd place: 1/3 payout
A66: 0 | G66: =IF(race_set="Y",G72&" horse race set for "&G71&" "&H71&"!","") -> 
A67: 0
A68: 0.5
A69: 1
B70: Speed | C70: 0.1 | D70: * actual time | F70: Speed | G70: 0.1 | H70: * actual time
B71: Distance | C71: 400 | D71: meters | F71: Distance | G71: 400 | H71: meters | J71: Enter name in box above then press button
A72: =IFERROR(IF(RANK(C51,$C$44:$C$63,1)=1,1,IF(RANK(C51,$C$44:$C$63,1)=2,0.5,IF(RANK(C51,$C$44:$C$63,1)=3,1/3,0))),"") ->  | B72: # Horses | C72: 5 | F72: # of Horses | G72: 5 | H72: N
A73: =IFERROR(IF(RANK(C52,$C$44:$C$63,1)=1,1,IF(RANK(C52,$C$44:$C$63,1)=2,0.5,IF(RANK(C52,$C$44:$C$63,1)=3,1/3,0))),"") ->  | C73: Player | E73: =IF(E43=0,"",E43) ->  | Q73: =IF(Q43=0,"",Q43) -> 
C74: Cash | E74: =IFERROR(VLOOKUP(E73,players!$A:$D,2,FALSE),"") ->  | F74: =IFERROR(VLOOKUP(F73,players!$A:$D,2,FALSE),"") ->  | G74: =IFERROR(VLOOKUP(G73,players!$A:$D,2,FALSE),"") ->  | H74: =IFERROR(VLOOKUP(H73,players!$A:$D,2,FALSE),"") ->  | I74: =IFERROR(VLOOKUP(I73,players!$A:$D,2,FALSE),"") ->  | J74: =IFERROR(VLOOKUP(J73,players!$A:$D,2,FALSE),"") ->  | K74: =IFERROR(VLOOKUP(K73,players!$A:$D,2,FALSE),"") ->  | L74: =IFERROR(VLOOKUP(L73,players!$A:$D,2,FALSE),"") ->  | M74: =IFERROR(VLOOKUP(M73,players!$A:$D,2,FALSE),"") ->  | N74: =IFERROR(VLOOKUP(N73,players!$A:$D,2,FALSE),"") ->  | O74: =IFERROR(VLOOKUP(O73,players!$A:$D,2,FALSE),"") ->  | P74: =IFERROR(VLOOKUP(P73,players!$A:$D,2,FALSE),"") ->  | Q74: =IFERROR(VLOOKUP(Q73,players!$A:$D,2,FALSE),"") ->  | R74: =IFERROR(VLOOKUP(R73,players!$A:$D,2,FALSE),"") ->  | S74: =IFERROR(VLOOKUP(S73,players!$A:$D,2,FALSE),"") -> 
C75: Average Winnings | E75: =IFERROR(VLOOKUP(E43,players!$A:$D,4,FALSE),"") ->  | F75: =IFERROR(VLOOKUP(F43,players!$A:$D,4,FALSE),"") ->  | G75: =IFERROR(VLOOKUP(G43,players!$A:$D,4,FALSE),"") ->  | H75: =IFERROR(VLOOKUP(H43,players!$A:$D,4,FALSE),"") ->  | I75: =IFERROR(VLOOKUP(I43,players!$A:$D,4,FALSE),"") ->  | J75: =IFERROR(VLOOKUP(J43,players!$A:$D,4,FALSE),"") ->  | K75: =IFERROR(VLOOKUP(K43,players!$A:$D,4,FALSE),"") ->  | L75: =IFERROR(VLOOKUP(L43,players!$A:$D,4,FALSE),"") ->  | M75: =IFERROR(VLOOKUP(M43,players!$A:$D,4,FALSE),"") ->  | N75: =IFERROR(VLOOKUP(N43,players!$A:$D,4,FALSE),"") ->  | O75: =IFERROR(VLOOKUP(O43,players!$A:$D,4,FALSE),"") ->  | P75: =IFERROR(VLOOKUP(P43,players!$A:$D,4,FALSE),"") ->  | Q75: =IFERROR(VLOOKUP(Q43,players!$A:$D,4,FALSE),"") ->  | R75: =IFERROR(VLOOKUP(R43,players!$A:$D,4,FALSE),"") ->  | S75: =IFERROR(VLOOKUP(S43,players!$A:$D,4,FALSE),"") -> 
C76: Biggest Win | E76: =IFERROR(VLOOKUP(E43,players!$A:$E,5,FALSE),"") ->  | F76: =IFERROR(VLOOKUP(F43,players!$A:$E,5,FALSE),"") ->  | G76: =IFERROR(VLOOKUP(G43,players!$A:$E,5,FALSE),"") ->  | H76: =IFERROR(VLOOKUP(H43,players!$A:$E,5,FALSE),"") ->  | I76: =IFERROR(VLOOKUP(I43,players!$A:$E,5,FALSE),"") ->  | J76: =IFERROR(VLOOKUP(J43,players!$A:$E,5,FALSE),"") ->  | K76: =IFERROR(VLOOKUP(K43,players!$A:$E,5,FALSE),"") ->  | L76: =IFERROR(VLOOKUP(L43,players!$A:$E,5,FALSE),"") ->  | M76: =IFERROR(VLOOKUP(M43,players!$A:$E,5,FALSE),"") ->  | N76: =IFERROR(VLOOKUP(N43,players!$A:$E,5,FALSE),"") ->  | O76: =IFERROR(VLOOKUP(O43,players!$A:$E,5,FALSE),"") ->  | P76: =IFERROR(VLOOKUP(P43,players!$A:$E,5,FALSE),"") ->  | Q76: =IFERROR(VLOOKUP(Q43,players!$A:$E,5,FALSE),"") ->  | R76: =IFERROR(VLOOKUP(R43,players!$A:$E,5,FALSE),"") ->  | S76: =IFERROR(VLOOKUP(S43,players!$A:$E,5,FALSE),"") -> 
D77: =COUNTIF(E77:P77,FALSE) -> 0 | E77: =SUM(E44:E63)<=E74 -> TRUE | F77: =SUM(F44:F63)<=F74 -> TRUE | G77: TRUE | H77: TRUE | I77: TRUE | J77: TRUE | K77: TRUE | L77: TRUE | M77: TRUE | N77: TRUE | O77: TRUE | P77: TRUE
A81: =IFERROR(IF(RANK(C60,$C$44:$C$63,1)=1,1,IF(RANK(C60,$C$44:$C$63,1)=2,0.5,IF(RANK(C60,$C$44:$C$63,1)=3,1/3,0))),"") -> 
A84: =IFERROR(IF(RANK(C63,$C$44:$C$63,1)=1,1,IF(RANK(C63,$C$44:$C$63,1)=2,0.5,IF(RANK(C63,$C$44:$C$63,1)=3,1/3,0))),"") -> 

Sheet control (hidden)
A1: avg | B1: =AVERAGE('the race'!P2:P21) -> 63.1958009
A2: stdev | B2: =STDEV('the race'!P2:P21) -> 19.44474714
A3: in race? | B3: 1 | C3: *set this to 1 when race starts, set to 0 once 'setup race' has been run
A4: length of race (m) | B4: =C12 -> 400 | C4: *this will change when alternate race types are selected. Default is/was 400 m
B7: meters | C7: length
A8: furlongs | B8: =1/200 -> 0.005 | C8: =IF('the race'!$H$71=control!A8,'the race'!$G$71*control!B8,"") -> 
A9: miles | B9: =B8/8 -> 0.000625 | C9: =IF('the race'!$H$71=control!A9,'the race'!$G$71*control!B9,"") -> 
A10: yards | B10: =B8*220 -> 1.1 | C10: =IF('the race'!$H$71=control!A10,'the race'!$G$71*control!B10,"") -> 
A11: meters | B11: =B8*200 -> 1 | C11: =IF('the race'!$H$71=control!A11,'the race'!$G$71*control!B11,"") -> 400
C12: =MAX(C8:C11) -> 400
F15: duplicate player?
B16: m/s | F16: =IF('the race'!J70="","Invalid",IF(COUNTIF(players!A:A,'the race'!J70)>0,"Duplicate","Valid")) -> Invalid
A17: m/s | B17: 1
A18: mph | B18: 0.44704 | F18: race valid names?
F19: =IF('the race'!E43="",1,IF(COUNTIF('the race'!$E$43:$S$43,'the race'!E43)>1,0,COUNTIF(players!$A:$A,'the race'!E43))) -> 1 | G19: =IF('the race'!F43="",1,IF(COUNTIF('the race'!$E$43:$S$43,'the race'!F43)>1,0,COUNTIF(players!$A:$A,'the race'!F43))) -> 1 | H19: =IF('the race'!G43="",1,IF(COUNTIF('the race'!$E$43:$S$43,'the race'!G43)>1,0,COUNTIF(players!$A:$A,'the race'!G43))) -> 1 | I19: =IF('the race'!H43="",1,IF(COUNTIF('the race'!$E$43:$S$43,'the race'!H43)>1,0,COUNTIF(players!$A:$A,'the race'!H43))) -> 1 | J19: =IF('the race'!I43="",1,IF(COUNTIF('the race'!$E$43:$S$43,'the race'!I43)>1,0,COUNTIF(players!$A:$A,'the race'!I43))) -> 1 | K19: =IF('the race'!J43="",1,IF(COUNTIF('the race'!$E$43:$S$43,'the race'!J43)>1,0,COUNTIF(players!$A:$A,'the race'!J43))) -> 1 | L19: =IF('the race'!K43="",1,IF(COUNTIF('the race'!$E$43:$S$43,'the race'!K43)>1,0,COUNTIF(players!$A:$A,'the race'!K43))) -> 1 | M19: =IF('the race'!L43="",1,IF(COUNTIF('the race'!$E$43:$S$43,'the race'!L43)>1,0,COUNTIF(players!$A:$A,'the race'!L43))) -> 1 | N19: =IF('the race'!M43="",1,IF(COUNTIF('the race'!$E$43:$S$43,'the race'!M43)>1,0,COUNTIF(players!$A:$A,'the race'!M43))) -> 1 | O19: =IF('the race'!N43="",1,IF(COUNTIF('the race'!$E$43:$S$43,'the race'!N43)>1,0,COUNTIF(players!$A:$A,'the race'!N43))) -> 1 | P19: =IF('the race'!O43="",1,IF(COUNTIF('the race'!$E$43:$S$43,'the race'!O43)>1,0,COUNTIF(players!$A:$A,'the race'!O43))) -> 1 | Q19: =IF('the race'!P43="",1,IF(COUNTIF('the race'!$E$43:$S$43,'the race'!P43)>1,0,COUNTIF(players!$A:$A,'the race'!P43))) -> 1 | R19: =IF('the race'!Q43="",1,IF(COUNTIF('the race'!$E$43:$S$43,'the race'!Q43)>1,0,COUNTIF(players!$A:$A,'the race'!Q43))) -> 1 | S19: =IF('the race'!R43="",1,IF(COUNTIF('the race'!$E$43:$S$43,'the race'!R43)>1,0,COUNTIF(players!$A:$A,'the race'!R43))) -> 1 | T19: =IF('the race'!S43="",1,IF(COUNTIF('the race'!$E$43:$S$43,'the race'!S43)>1,0,COUNTIF(players!$A:$A,'the race'!S43))) -> 1
A20: CREATE HORSE | F20: =IF(COUNTIF(F19:T19,0)>0,"Invalid","Valid") -> Valid
A21: name | B21: ='the race'!X50 -> 0 | D21: D
A22: speed | B22: ='the race'!X51*IF('the race'!X52="mph",control!B18,control!B17) -> 0 | D22: M
A23: stamina | B23: ='the race'!X53 -> 0 | D23: S
A24: strategy | B24: ='the race'!X54 -> 0
A25: valid? | B25: =IF(OR('the race'!X50="",'the race'!Z50="Duplicate",control!B22<=0,control!B23<=0,COUNTIF(control!D21:D23,control!B24)=0),"N","Y") -> N

Sheet players
A1: ENTER NAME | B1: Cash | C1: Number of Bets | D1: Average Winnings | E1: Biggest Win | F1: Cash | G1: Number of Bets | H1: Biggest Win
A2: TEMPLATE | B2: 1000 | C2: 0 | D2: =IFERROR((B2-1000)/C2,0) -> 0 | E2: 0 | F2: =B2+IFERROR(HLOOKUP(A2,'the race'!$D$43:$P$64,22,FALSE),0)-SUM(INDIRECT(ADDRESS(ROW('the race'!$E$44),IFERROR(MATCH(A2,'the race'!$A$43:$P$43,0),1),1,1,"the race")&":"&ADDRESS(ROW('the race'!$E$63),IFERROR(MATCH(A2,'the race'!$A$43:$P$43,0),1),1,1),TRUE)) -> 1000 | G2: =C2+IF(COUNTIF('the race'!$D$43:$P$43,players!A2)>0,1,0) -> 0 | H2: =MAX(E2,IFERROR(HLOOKUP(A2,'the race'!$D$43:$P$64,22,FALSE),0)-SUM(INDIRECT(ADDRESS(ROW('the race'!$E$44),IFERROR(MATCH(A2,'the race'!$A$43:$P$43,0),1),1,1,"the race")&":"&ADDRESS(ROW('the race'!$E$63),IFERROR(MATCH(A2,'the race'!$A$43:$P$43,0),1),1,1),TRUE))) -> 0
